Workbook

Sheet LevelBattleConfig
A1: ID | C1: levelName | D1: MonsterWavesConfigId | E1: monsterLv | F1: monsterStar | G1: miniExpAndGold | H1: eliteExpAndGold | I1: bossExpAndGold | J1: miniMonsterItem | K1: eliteMonsterItem | L1: BossMonsterWavesId | M1: bossLv | N1: bossStar | O1: bossMonsterId | P1: bossItem | Q1: exp
A2: int | C2: string | D2: int[] | E2: int | F2: int | G2: int[] | H2: int | I2: int | J2: string[] | K2: string[] | L2: int | M2: int | N2: int | O2: int | P2: string[] | Q2: int
A4: ID | B4: 描述 | C4: 关卡名 | D4: 这个节点内可以刷的怪物组 | E4: 等级 | F4: 星级 | G4: 小怪经验和金币产出 | H4: 精英经验和金币产出 | I4: boss经验和金币产出 | J4: 打死小怪可以获得的奖励 | K4: 杀死精英怪可以获得的奖励 | L4: 大boss的时候使用的波ID | M4: boss等级 | N4: boss星级 | O4: boss怪物ID | P4: 打死boss可以获得的奖励 | Q4: 获得多少经验杀boss
A5: 1 | C5: 1-1 | D5: 1;1 | E5: 1 | F5: 3 | G5: 10 | H5: 10 | I5: 120 | J5: 10007,10011,10014 | K5: 10005,10012,10014 | L5: 0 | M5: 4 | N5: 3 | O5: 9000103 | P5: 10006,10013,10014 | Q5: 100
A6: 2 | C6: 1-2 | D6: 4;5;6 | E6: =M5 -> 4 | F6: 3 | G6: 10 | H6: 10 | I6: 128 | J6: 10007,10011,10014 | K6: 10005,10012,10014 | L6: 0 | M6: 8 | N6: 3 | O6: 9000106 | P6: 10006,10013,10014 | Q6: 100
A7: 3 | C7: 1-3 | D7: 1;2;3 | E7: =M6 -> 8 | F7: 3 | G7: 12 | H7: 12 | I7: 136 | J7: 10007,10011,10014 | K7: 10005,10012,10014 | L7: 0 | M7: 12 | N7: 3 | O7: 9000103 | P7: 10006,10013,10014 | Q7: 100
A8: 4 | C8: 1-4 | D8: 4;5;6 | E8: 12 | F8: 3 | G8: 12 | H8: 12 | I8: 144 | J8: 10007,10011,10014 | K8: 10005,10012,10014 | L8: 0 | M8: 16 | N8: 3 | O8: 9000106 | P8: 10006,10013,10014 | Q8: 100
A9: 5 | C9: 1-5 | D9: 1;2;3 | E9: 16 | F9: 3 | G9: 12 | H9: 12 | I9: 152 | J9: 10007,10011,10014 | K9: 10005,10012,10014 | L9: 0 | M9: 20 | N9: 3 | O9: 9000103 | P9: 10006,10013,10014 | Q9: 100
A10: 6 | C10: 1-6 | D10: 4;5;6 | E10: 20 | F10: 3 | G10: 12 | H10: 12 | I10: 160 | J10: 10007,10011,10014 | K10: 10005,10012,10014 | L10: 0 | M10: 24 | N10: 3 | O10: 9000106 | P10: 10006,10013,10014 | Q10: 100
A11: 7 | C11: 1-7 | D11: 1;2;3 | E11: 24 | F11: 3 | G11: 12 | H11: 12 | I11: 168 | J11: 10007,10011,10014 | K11: 10005,10012,10014 | L11: 0 | M11: 28 | N11: 3 | O11: 9000103 | P11: 10006,10013,10014 | Q11: 100
A12: 8 | C12: 1-8 | D12: 4;5;6 | E12: 28 | F12: 3 | G12: 13 | H12: 13 | I12: 180 | J12: 10007,10011,10014 | K12: 10005,10012,10014 | L12: 0 | M12: 32 | N12: 3 | O12: 9000106 | P12: 10006,10013,10014 | Q12: 100
A13: 9 | C13: 1-9 | D13: 1;2;3 | E13: 32 | F13: 3 | G13: 13 | H13: 13 | I13: 192 | J13: 10007,10011,10014 | K13: 10005,10012,10014 | L13: 0 | M13: 35 | N13: 3 | O13: 9000103 | P13: 10006,10013,10014 | Q13: 100
A14: 10 | C14: 1-10 | D14: 4;5;6 | E14: 35 | F14: 4 | G14: 13 | H14: 13 | I14: 204 | J14: 10007,10011,10014 | K14: 10005,10012,10014 | L14: 0 | M14: 39 | N14: 4 | O14: 9000106 | P14: 10006,10013,10014 | Q14: 110
A15: 11 | C15: 1-11 | D15: 1;2;3 | E15: 39 | F15: 4 | G15: 13 | H15: 13 | I15: 216 | J15: 10007,10011,10014 | K15: 10005,10012,10014 | L15: 0 | M15: 42 | N15: 4 | O15: 9000103 | P15: 10006,10013,10014 | Q15: 110
A16: 12 | C16: 1-12 | D16: 4;5;6 | E16: 42 | F16: 4 | G16: 13 | H16: 13 | I16: 228 | J16: 10007,10011,10014 | K16: 10005,10012,10014 | L16: 0 | M16: 45 | N16: 4 | O16: 9000106 | P16: 10006,10013,10014 | Q16: 110
A17: 13 | C17: 1-13 | D17: 1;2;3 | E17: 45 | F17: 4 | G17: 15 | H17: 15 | I17: 242 | J17: 10007,10011,10014 | K17: 10005,10012,10014 | L17: 0 | M17: 48 | N17: 4 | O17: 9000103 | P17: 10006,10013,10014 | Q17: 110
A18: 14 | C18: 1-14 | D18: 4;5;6 | E18: 48 | F18: 4 | G18: 15 | H18: 15 | I18: 258 | J18: 10007,10011,10014 | K18: 10005,10012,10014 | L18: 0 | M18: 51 | N18: 4 | O18: 9000106 | P18: 10006,10013,10014 | Q18: 110
A19: 15 | C19: 1-15 | D19: 1;2;3 | E19: 51 | F19: 4 | G19: 15 | H19: 15 | I19: 274 | J19: 10007,10011,10014 | K19: 10005,10012,10014 | L19: 0 | M19: 54 | N19: 4 | O19: 9000103 | P19: 10006,10013,10014 | Q19: 110
A20: 16 | C20: 1-16 | D20: 4;5;6 | E20: 54 | F20: 4 | G20: 15 | H20: 15 | I20: 290 | J20: 10007,10011,10014 | K20: 10005,10012,10014 | L20: 0 | M20: 57 | N20: 4 | O20: 9000106 | P20: 10006,10013,10014 | Q20: 110
A21: 17 | C21: 1-17 | D21: 1;2;3 | E21: 57 | F21: 4 | G21: 15 | H21: 15 | I21: 306 | J21: 10007,10011,10014 | K21: 10005,10012,10014 | L21: 0 | M21: 60 | N21: 4 | O21: 9000103 | P21: 10006,10013,10014 | Q21: 110
A22: 18 | C22: 1-18 | D22: 4;5;6 | E22: 60 | F22: 4 | G22: 16 | H22: 16 | I22: 326 | J22: 10007,10011,10014 | K22: 10005,10012,10014 | L22: 0 | M22: 63 | N22: 4 | O22: 9000106 | P22: 10006,10013,10014 | Q22: 110
A23: 19 | C23: 1-19 | D23: 1;2;3 | E23: 63 | F23: 5 | G23: 16 | H23: 16 | I23: 346 | J23: 10007,10011,10014 | K23: 10005,10012,10014 | L23: 0 | M23: 66 | N23: 4 | O23: 9000103 | P23: 10006,10013,10014 | Q23: 110
A24: 20 | C24: 1-20 | D24: 4;5;6 | E24: 66 | F24: 5 | G24: 16 | H24: 16 | I24: 366 | J24: 10007,10011,10014 | K24: 10005,10012,10014 | L24: 0 | M24: 68 | N24: 4 | O24: 9000106 | P24: 10006,10013,10014 | Q24: 110
A25: 21 | C25: 1-21 | D25: 1;2;3 | E25: 68 | F25: 5 | G25: 16 | H25: 16 | I25: 388 | J25: 10007,10011,10014 | K25: 10005,10012,10014 | L25: 0 | M25: 70 | N25: 4 | O25: 9000103 | P25: 10006,10013,10014 | Q25: 110
A26: 22 | C26: 1-22 | D26: 4;5;6 | E26: 70 | F26: 5 | G26: 16 | H26: 16 | I26: 412 | J26: 10007,10011,10014 | K26: 10005,10012,10014 | L26: 0 | M26: 72 | N26: 4 | O26: 9000106 | P26: 10006,10013,10014 | Q26: 110
A27: 23 | C27: 1-23 | D27: 1;2;3 | E27: 72 | F27: 5 | G27: 18 | H27: 18 | I27: 436 | J27: 10007,10011,10014 | K27: 10005,10012,10014 | L27: 0 | M27: 74 | N27: 4 | O27: 9000103 | P27: 10006,10013,10014 | Q27: 110
A28: 24 | C28: 1-24 | D28: 4;5;6 | E28: 74 | F28: 5 | G28: 18 | H28: 18 | I28: 464 | J28: 10007,10011,10014 | K28: 10005,10012,10014 | L28: 0 | M28: 76 | N28: 4 | O28: 9000106 | P28: 10006,10013,10014 | Q28: 110
A29: 25 | C29: 1-25 | D29: 1;2;3 | E29: 76 | F29: 5 | G29: 18 | H29: 18 | I29: 492 | J29: 10007,10011,10014 | K29: 10005,10012,10014 | L29: 0 | M29: 78 | N29: 4 | O29: 9000103 | P29: 10006,10013,10014 | Q29: 110
A30: 26 | C30: 1-26 | D30: 4;5;6 | E30: 78 | F30: 5 | G30: 18 | H30: 18 | I30: 522 | J30: 10007,10011,10014 | K30: 10005,10012,10014 | L30: 0 | M30: 80 | N30: 4 | O30: 9000106 | P30: 10006,10013,10014 | Q30: 130
A31: 27 | C31: 1-27 | D31: 1;2;3 | E31: 80 | F31: 5 | G31: 18 | H31: 18 | I31: 554 | J31: 10007,10011,10014 | K31: 10005,10012,10014 | L31: 0 | M31: 82 | N31: 4 | O31: 9000103 | P31: 10006,10013,10014 | Q31: 130
A32: 28 | C32: 1-28 | D32: 4;5;6 | E32: 82 | F32: 5 | G32: 19 | H32: 19 | I32: 588 | J32: 10007,10011,10014 | K32: 10005,10012,10014 | L32: 0 | M32: 84 | N32: 4 | O32: 9000106 | P32: 10006,10013,10014 | Q32: 130
A33: 29 | C33: 1-29 | D33: 1;2;3 | E33: 84 | F33: 5 | G33: 19 | H33: 19 | I33: 624 | J33: 10007,10011,10014 | K33: 10005,10012,10014 | L33: 0 | M33: 86 | N33: 4 | O33: 9000103 | P33: 10006,10013,10014 | Q33: 130
A34: 30 | C34: 1-30 | D34: 4;5;6 | E34: 86 | F34: 5 | G34: 19 | H34: 19 | I34: 662 | J34: 10007,10011,10014 | K34: 10005,10012,10014 | L34: 0 | M34: 88 | N34: 4 | O34: 9000106 | P34: 10006,10013,10014 | Q34: 130
A35: 31 | C35: 1-31 | D35: 1;2;3 | E35: 88 | F35: 6 | G35: 19 | H35: 19 | I35: 702 | J35: 10007,10011,10014 | K35: 10005,10012,10014 | L35: 0 | M35: 90 | N35: 4 | O35: 9000103 | P35: 10006,10013,10014 | Q35: 130
A36: 32 | C36: 1-32 | D36: 4;5;6 | E36: 90 | F36: 6 | G36: 19 | H36: 19 | I36: 746 | J36: 10007,10011,10014 | K36: 10005,10012,10014 | L36: 0 | M36: 92 | N36: 4 | O36: 9000106 | P36: 10006,10013,10014 | Q36: 130
A37: 33 | C37: 1-33 | D37: 1;2;3 | E37: 92 | F37: 6 | G37: 21 | H37: 21 | I37: 792 | J37: 10007,10011,10014 | K37: 10005,10012,10014 | L37: 0 | M37: 94 | N37: 4 | O37: 9000103 | P37: 10006,10013,10014 | Q37: 130
A38: 34 | C38: 1-34 | D38: 4;5;6 | E38: 94 | F38: 6 | G38: 21 | H38: 21 | I38: 840 | J38: 10007,10011,10014 | K38: 10005,10012,10014 | L38: 0 | M38: 96 | N38: 4 | O38: 9000106 | P38: 10006,10013,10014 | Q38: 130
A39: 35 | C39: 1-35 | D39: 1;2;3 | E39: =M38 -> 96 | F39: 6 | G39: 21 | H39: 21 | I39: 892 | J39: 10007,10011,10014 | K39: 10005,10012,10014 | L39: 0 | M39: 98 | N39: 4 | O39: 9000103 | P39: 10006,10013,10014 | Q39: 130
A40: 36 | C40: 1-36 | D40: 4;5;6 | E40: 98 | F40: 6 | G40: 21 | H40: 21 | I40: 946 | J40: 10007,10011,10014 | K40: 10005,10012,10014 | L40: 0 | M40: 99 | N40: 4 | O40: 9000106 | P40: 10006,10013,10014 | Q40: 130
A41: 37 | C41: 1-37 | D41: 1;2;3 | E41: 99 | F41: 6 | G41: 21 | H41: 21 | I41: 1004 | J41: 10007,10011,10014 | K41: 10005,10012,10014 | L41: 0 | M41: 100 | N41: 4 | O41: 9000103 | P41: 10006,10013,10014 | Q41: 130
A42: 38 | C42: 1-38 | D42: 4;5;6 | E42: 100 | F42: 6 | G42: 22 | H42: 22 | I42: 1066 | J42: 10007,10011,10014 | K42: 10005,10012,10014 | L42: 0 | M42: 101 | N42: 4 | O42: 9000106 | P42: 10006,10013,10014 | Q42: 130
A43: 39 | C43: 1-39 | D43: 1;2;3 | E43: 101 | F43: 6 | G43: 22 | H43: 22 | I43: 1130 | J43: 10007,10011,10014 | K43: 10005,10012,10014 | L43: 0 | M43: 102 | N43: 4 | O43: 9000103 | P43: 10006,10013,10014 | Q43: 130
A44: 40 | C44: 1-40 | D44: 4;5;6 | E44: 102 | F44: 6 | G44: 22 | H44: 22 | I44: 1198 | J44: 10007,10011,10014 | K44: 10005,10012,10014 | L44: 0 | M44: 103 | N44: 4 | O44: 9000106 | P44: 10006,10013,10014 | Q44: 130
A45: 41 | C45: 1-41 | D45: 1;2;3 | E45: 103 | F45: 6 | G45: 22 | H45: 22 | I45: 1272 | J45: 10007,10011,10014 | K45: 10005,10012,10014 | L45: 0 | M45: 104 | N45: 4 | O45: 9000103 | P45: 10006,10013,10014 | Q45: 130
A46: 42 | C46: 1-42 | D46: 4;5;6 | E46: 104 | F46: 6 | G46: 22 | H46: 22 | I46: 1350 | J46: 10007,10011,10014 | K46: 10005,10012,10014 | L46: 0 | M46: 105 | N46: 4 | O46: 9000106 | P46: 10006,10013,10014 | Q46: 150
A47: 43 | C47: 1-43 | D47: 1;2;3 | E47: 105 | F47: 6 | G47: 24 | H47: 24 | I47: 1432 | J47: 10007,10011,10014 | K47: 10005,10012,10014 | L47: 0 | M47: 106 | N47: 4 | O47: 9000103 | P47: 10006,10013,10014 | Q47: 150
A48: 44 | C48: 1-44 | D48: 4;5;6 | E48: 106 | F48: 6 | G48: 24 | H48: 24 | I48: 1518 | J48: 10007,10011,10014 | K48: 10005,10012,10014 | L48: 0 | M48: 107 | N48: 4 | O48: 9000106 | P48: 10006,10013,10014 | Q48: 150
A49: 45 | C49: 1-45 | D49: 1;2;3 | E49: 107 | F49: 6 | G49: 24 | H49: 24 | I49: 1610 | J49: 10007,10011,10014 | K49: 10005,10012,10014 | L49: 0 | M49: 108 | N49: 4 | O49: 9000103 | P49: 10006,10013,10014 | Q49: 150
A50: 46 | C50: 1-46 | D50: 4;5;6 | E50: 108 | F50: 6 | G50: 24 | H50: 24 | I50: 1708 | J50: 10007,10011,10014 | K50: 10005,10012,10014 | L50: 0 | M50: 109 | N50: 4 | O50: 9000106 | P50: 10006,10013,10014 | Q50: 150
A51: 47 | C51: 1-47 | D51: 1;2;3 | E51: 109 | F51: 6 | G51: 24 | H51: 24 | I51: 1812 | J51: 10007,10011,10014 | K51: 10005,10012,10014 | L51: 0 | M51: 110 | N51: 4 | O51: 9000103 | P51: 10006,10013,10014 | Q51: 150
A52: 48 | C52: 1-48 | D52: 4;5;6 | E52: 110 | F52: 6 | G52: 25 | H52: 25 | I52: 1922 | J52: 10007,10011,10014 | K52: 10005,10012,10014 | L52: 0 | M52: 111 | N52: 4 | O52: 9000106 | P52: 10006,10013,10014 | Q52: 150
A53: 49 | C53: 1-49 | D53: 1;2;3 | E53: 111 | F53: 6 | G53: 25 | H53: 25 | I53: 2040 | J53: 10007,10011,10014 | K53: 10005,10012,10014 | L53: 0 | M53: 112 | N53: 4 | O53: 9000103 | P53: 10006,10013,10014 | Q53: 150
A54: 50 | C54: 1-50 | D54: 1;2;3 | E54: 112 | F54: 6 | G54: 25 | H54: 25 | I54: 2166 | J54: 10007,10011,10014 | K54: 10005,10012,10014 | L54: 0 | M54: 113 | N54: 4 | O54: 9000106 | P54: 10006,10013,10014 | Q54: 150
A55: 51 | C55: 1-51 | D55: 1;2;3 | E55: 113 | F55: 6 | G55: 25 | H55: 25 | I55: 2296 | J55: 10007,10011,10014 | K55: 10005,10012,10014 | L55: 0 | M55: 114 | N55: 4 | O55: 9000103 | P55: 10006,10013,10014 | Q55: 150
A56: 52 | C56: 1-52 | D56: 1;2;3 | E56: 114 | F56: 6 | G56: 25 | H56: 25 | I56: 2434 | J56: 10007,10011,10014 | K56: 10005,10012,10014 | L56: 0 | M56: 115 | N56: 4 | O56: 9000106 | P56: 10006,10013,10014 | Q56: 150
A57: 53 | C57: 1-53 | D57: 1;2;3 | E57: 115 | F57: 6 | G57: 27 | H57: 27 | I57: 2584 | J57: 10007,10011,10014 | K57: 10005,10012,10014 | L57: 0 | M57: 116 | N57: 4 | O57: 9000103 | P57: 10006,10013,10014 | Q57: 150
A58: 54 | C58: 1-54 | D58: 1;2;3 | E58: 116 | F58: 6 | G58: 27 | H58: 27 | I58: 2742 | J58: 10007,10011,10014 | K58: 10005,10012,10014 | L58: 0 | M58: 117 | N58: 4 | O58: 9000106 | P58: 10006,10013,10014 | Q58: 150
A59: 55 | C59: 1-55 | D59: 1;2;3 | E59: 117 | F59: 6 | G59: 27 | H59: 27 | I59: 2908 | J59: 10007,10011,10014 | K59: 10005,10012,10014 | L59: 0 | M59: 118 | N59: 4 | O59: 9000103 | P59: 10006,10013,10014 | Q59: 150
A60: 56 | C60: 1-56 | D60: 1;2;3 | E60: 118 | F60: 6 | G60: 27 | H60: 27 | I60: 3086 | J60: 10007,10011,10014 | K60: 10005,10012,10014 | L60: 0 | M60: 119 | N60: 4 | O60: 9000106 | P60: 10006,10013,10014 | Q60: 150
A61: 57 | C61: 1-57 | D61: 1;2;3 | E61: 119 | F61: 6 | G61: 27 | H61: 27 | I61: 3274 | J61: 10007,10011,10014 | K61: 10005,10012,10014 | L61: 0 | M61: 120 | N61: 4 | O61: 9000103 | P61: 10006,10013,10014 | Q61: 150
A62: 58 | C62: 1-58 | D62: 1;2;3 | E62: 120 | F62: 6 | G62: 28 | H62: 28 | I62: 3474 | J62: 10007,10011,10014 | K62: 10005,10012,10014 | L62: 0 | M62: 121 | N62: 4 | O62: 9000103 | P62: 10006,10013,10014 | Q62: 150
A63: 59 | C63: 1-59 | D63: 1;2;3 | E63: 121 | F63: 6 | G63: 28 | H63: 28 | I63: 3686 | J63: 10007,10011,10014 | K63: 10005,10012,10014 | L63: 0 | M63: 122 | N63: 4 | O63: 9000103 | P63: 10006,10013,10014 | Q63: 150
A64: 60 | C64: 1-60 | D64: 1;2;3 | E64: 122 | F64: 6 | G64: 28 | H64: 28 | I64: 3910 | J64: 10007,10011,10014 | K64: 10005,10012,10014 | L64: 0 | M64: 123 | N64: 4 | O64: 9000103 | P64: 10006,10013,10014 | Q64: 150
A65: 61 | C65: 1-61 | D65: 1;2;3 | E65: 123 | F65: 6 | G65: 28 | H65: 28 | I65: 4148 | J65: 10007,10011,10014 | K65: 10005,10012,10014 | L65: 0 | M65: 124 | N65: 4 | O65: 9000103 | P65: 10006,10013,10014 | Q65: 150
A66: 62 | C66: 1-62 | D66: 1;2;3 | E66: 124 | F66: 6 | G66: 28 | H66: 28 | I66: 4400 | J66: 10007,10011,10014 | K66: 10005,10012,10014 | L66: 0 | M66: 125 | N66: 4 | O66: 9000103 | P66: 10006,10013,10014 | Q66: 150
A67: 63 | C67: 1-63 | D67: 1;2;3 | E67: 125 | F67: 6 | G67: 30 | H67: 30 | I67: 4668 | J67: 10007,10011,10014 | K67: 10005,10012,10014 | L67: 0 | M67: 126 | N67: 4 | O67: 9000103 | P67: 10006,10013,10014 | Q67: 150
A68: 64 | C68: 1-64 | D68: 1;2;3 | E68: 126 | F68: 6 | G68: 30 | H68: 30 | I68: 4952 | J68: 10007,10011,10014 | K68: 10005,10012,10014 | L68: 0 | M68: 127 | N68: 4 | O68: 9000103 | P68: 10006,10013,10014 | Q68: 150
A69: 65 | C69: 1-65 | D69: 1;2;3 | E69: 127 | F69: 6 | G69: 30 | H69: 30 | I69: 5254 | J69: 10007,10011,10014 | K69: 10005,10012,10014 | L69: 0 | M69: 128 | N69: 4 | O69: 9000103 | P69: 10006,10013,10014 | Q69: 200
A70: 66 | C70: 1-66 | D70: 1;2;3 | E70: 128 | F70: 7 | G70: 30 | H70: 30 | I70: 5574 | J70: 10007,10011,10014 | K70: 10005,10012,10014 | L70: 0 | M70: 129 | N70: 4 | O70: 9000103 | P70: 10006,10013,10014 | Q70: 200
A71: 67 | C71: 1-67 | D71: 1;2;3 | E71: =M70 -> 129 | F71: 7 | G71: 30 | H71: 30 | I71: 5914 | J71: 10007,10011,10014 | K71: 10005,10012,10014 | L71: 0 | M71: 130 | N71: 4 | O71: 9000103 | P71: 10006,10013,10014 | Q71: 200
A72: 68 | C72: 1-68 | D72: 1;2;3 | E72: 130 | F72: 7 | G72: 31 | H72: 31 | I72: 6274 | J72: 10007,10011,10014 | K72: 10005,10012,10014 | L72: 0 | M72: 131 | N72: 5 | O72: 9000103 | P72: 10006,10013,10014 | Q72: 200
A73: 69 | C73: 1-69 | D73: 1;2;3 | E73: 131 | F73: 7 | G73: 31 | H73: 31 | I73: 6656 | J73: 10007,10011,10014 | K73: 10005,10012,10014 | L73: 0 | M73: 132 | N73: 5 | O73: 9000103 | P73: 10006,10013,10014 | Q73: 200
A74: 70 | C74: 1-70 | D74: 1;2;3 | E74: 132 | F74: 7 | G74: 31 | H74: 31 | I74: 7062 | J74: 10007,10011,10014 | K74: 10005,10012,10014 | L74: 0 | M74: 133 | N74: 5 | O74: 9000103 | P74: 10006,10013,10014 | Q74: 200
A75: 71 | C75: 1-71 | D75: 1;2;3 | E75: 133 | F75: 7 | G75: 31 | H75: 31 | I75: 7492 | J75: 10007,10011,10014 | K75: 10005,10012,10014 | L75: 0 | M75: 134 | N75: 5 | O75: 9000103 | P75: 10006,10013,10014 | Q75: 200
A76: 72 | C76: 1-72 | D76: 1;2;3 | E76: 134 | F76: 7 | G76: 31 | H76: 31 | I76: 7948 | J76: 10007,10011,10014 | K76: 10005,10012,10014 | L76: 0 | M76: 135 | N76: 5 | O76: 9000103 | P76: 10006,10013,10014 | Q76: 200
A77: 73 | C77: 1-73 | D77: 1;2;3 | E77: 135 | F77: 7 | G77: 33 | H77: 33 | I77: 8432 | J77: 10007,10011,10014 | K77: 10005,10012,10014 | L77: 0 | M77: 136 | N77: 5 | O77: 9000103 | P77: 10006,10013,10014 | Q77: 200
A78: 74 | C78: 1-74 | D78: 1;2;3 | E78: 136 | F78: 7 | G78: 33 | H78: 33 | I78: 8944 | J78: 10007,10011,10014 | K78: 10005,10012,10014 | L78: 0 | M78: 137 | N78: 5 | O78: 9000103 | P78: 10006,10013,10014 | Q78: 200
A79: 75 | C79: 1-75 | D79: 1;2;3 | E79: 137 | F79: 7 | G79: 33 | H79: 33 | I79: 9488 | J79: 10007,10011,10014 | K79: 10005,10012,10014 | L79: 0 | M79: 138 | N79: 5 | O79: 9000103 | P79: 10006,10013,10014 | Q79: 200
A80: 76 | C80: 1-76 | D80: 1;2;3 | E80: 138 | F80: 7 | G80: 33 | H80: 33 | I80: 10066 | J80: 10007,10011,10014 | K80: 10005,10012,10014 | L80: 0 | M80: 139 | N80: 5 | O80: 9000103 | P80: 10006,10013,10014 | Q80: 200
A81: 77 | C81: 1-77 | D81: 1;2;3 | E81: 139 | F81: 7 | G81: 33 | H81: 33 | I81: 10680 | J81: 10007,10011,10014 | K81: 10005,10012,10014 | L81: 0 | M81: 140 | N81: 5 | O81: 9000103 | P81: 10006,10013,10014 | Q81: 200
A82: 78 | C82: 1-78 | D82: 1;2;3 | E82: 140 | F82: 7 | G82: 34 | H82: 34 | I82: 11330 | J82: 10007,10011,10014 | K82: 10005,10012,10014 | L82: 0 | M82: 141 | N82: 5 | O82: 9000103 | P82: 10006,10013,10014 | Q82: 200
A83: 79 | C83: 1-79 | D83: 1;2;3 | E83: 141 | F83: 7 | G83: 34 | H83: 34 | I83: 12020 | J83: 10007,10011,10014 | K83: 10005,10012,10014 | L83: 0 | M83: 142 | N83: 5 | O83: 9000103 | P83: 10006,10013,10014 | Q83: 200
A84: 80 | C84: 1-80 | D84: 1;2;3 | E84: 142 | F84: 7 | G84: 34 | H84: 34 | I84: 12752 | J84: 10007,10011,10014 | K84: 10005,10012,10014 | L84: 0 | M84: 143 | N84: 5 | O84: 9000103 | P84: 10006,10013,10014 | Q84: 200
A85: 81 | C85: 1-81 | D85: 1;2;3 | E85: 143 | F85: 7 | G85: 34 | H85: 34 | I85: 13528 | J85: 10007,10011,10014 | K85: 10005,10012,10014 | L85: 0 | M85: 144 | N85: 5 | O85: 9000103 | P85: 10006,10013,10014 | Q85: 200
A86: 82 | C86: 1-82 | D86: 1;2;3 | E86: 144 | F86: 7 | G86: 34 | H86: 34 | I86: 14352 | J86: 10007,10011,10014 | K86: 10005,10012,10014 | L86: 0 | M86: 145 | N86: 5 | O86: 9000103 | P86: 10006,10013,10014 | Q86: 200
A87: 83 | C87: 1-83 | D87: 1;2;3 | E87: 145 | F87: 7 | G87: 35 | H87: 35 | I87: 15226 | J87: 10007,10011,10014 | K87: 10005,10012,10014 | L87: 0 | M87: 146 | N87: 5 | O87: 9000103 | P87: 10006,10013,10014 | Q87: 200
A88: 84 | C88: 1-84 | D88: 1;2;3 | E88: 146 | F88: 7 | G88: 35 | H88: 35 | I88: 16152 | J88: 10007,10011,10014 | K88: 10005,10012,10014 | L88: 0 | M88: 147 | N88: 5 | O88: 9000103 | P88: 10006,10013,10014 | Q88: 200
A89: 85 | C89: 1-85 | D89: 1;2;3 | E89: 147 | F89: 7 | G89: 35 | H89: 35 | I89: 17136 | J89: 10007,10011,10014 | K89: 10005,10012,10014 | L89: 0 | M89: 148 | N89: 5 | O89: 9000103 | P89: 10006,10013,10014 | Q89: 200
A90: 86 | C90: 1-86 | D90: 1;2;3 | E90: 148 | F90: 7 | G90: 35 | H90: 35 | I90: 18180 | J90: 10007,10011,10014 | K90: 10005,10012,10014 | L90: 0 | M90: 149 | N90: 5 | O90: 9000103 | P90: 10006,10013,10014 | Q90: 200
A91: 87 | C91: 1-87 | D91: 1;2;3 | E91: 149 | F91: 7 | G91: 35 | H91: 35 | I91: 19288 | J91: 10007,10011,10014 | K91: 10005,10012,10014 | L91: 0 | M91: 150 | N91: 5 | O91: 9000103 | P91: 10006,10013,10014 | Q91: 200
A92: 88 | C92: 1-88 | D92: 1;2;3 | E92: 150 | F92: 7 | G92: 37 | H92: 37 | I92: 20462 | J92: 10007,10011,10014 | K92: 10005,10012,10014 | L92: 0 | M92: 151 | N92: 5 | O92: 9000103 | P92: 10006,10013,10014 | Q92: 200
A93: 89 | C93: 1-89 | D93: 1;2;3 | E93: 151 | F93: 8 | G93: 37 | H93: 37 | I93: 21708 | J93: 10007,10011,10014 | K93: 10005,10012,10014 | L93: 0 | M93: 152 | N93: 5 | O93: 9000103 | P93: 10006,10013,10014 | Q93: 200
A94: 90 | C94: 1-90 | D94: 1;2;3 | E94: 152 | F94: 8 | G94: 37 | H94: 37 | I94: 23030 | J94: 10007,10011,10014 | K94: 10005,10012,10014 | L94: 0 | M94: 153 | N94: 5 | O94: 9000103 | P94: 10006,10013,10014 | Q94: 200
A95: 91 | C95: 1-91 | D95: 1;2;3 | E95: 153 | F95: 8 | G95: 37 | H95: 37 | I95: 24432 | J95: 10007,10011,10014 | K95: 10005,10012,10014 | L95: 0 | M95: 154 | N95: 5 | O95: 9000103 | P95: 10006,10013,10014 | Q95: 200
A96: 92 | C96: 1-92 | D96: 1;2;3 | E96: 154 | F96: 8 | G96: 37 | H96: 37 | I96: 25918 | J96: 10007,10011,10014 | K96: 10005,10012,10014 | L96: 0 | M96: 155 | N96: 5 | O96: 9000103 | P96: 10006,10013,10014 | Q96: 200
A97: 93 | C97: 1-93 | D97: 1;2;3 | E97: 155 | F97: 8 | G97: 38 | H97: 38 | I97: 27496 | J97: 10007,10011,10014 | K97: 10005,10012,10014 | L97: 0 | M97: 156 | N97: 5 | O97: 9000103 | P97: 10006,10013,10014 | Q97: 200
A98: 94 | C98: 1-94 | D98: 1;2;3 | E98: 156 | F98: 8 | G98: 38 | H98: 38 | I98: 29170 | J98: 10007,10011,10014 | K98: 10005,10012,10014 | L98: 0 | M98: 157 | N98: 5 | O98: 9000103 | P98: 10006,10013,10014 | Q98: 200
A99: 95 | C99: 1-95 | D99: 1;2;3 | E99: 157 | F99: 8 | G99: 38 | H99: 38 | I99: 30948 | J99: 10007,10011,10014 | K99: 10005,10012,10014 | L99: 0 | M99: 158 | N99: 5 | O99: 9000103 | P99: 10006,10013,10014 | Q99: 200
A100: 96 | C100: 1-96 | D100: 1;2;3 | E100: 158 | F100: 8 | G100: 38 | H100: 38 | I100: 32832 | J100: 10007,10011,10014 | K100: 10005,10012,10014 | L100: 0 | M100: 159 | N100: 5 | O100: 9000103 | P100: 10006,10013,10014 | Q100: 200
A101: 97 | C101: 1-97 | D101: 1;2;3 | E101: 159 | F101: 8 | G101: 38 | H101: 38 | I101: 34830 | J101: 10007,10011,10014 | K101: 10005,10012,10014 | L101: 0 | M101: 160 | N101: 5 | O101: 9000103 | P101: 10006,10013,10014 | Q101: 200
A102: 98 | C102: 1-98 | D102: 1;2;3 | E102: 160 | F102: 8 | G102: 40 | H102: 40 | I102: 36950 | J102: 10007,10011,10014 | K102: 10005,10012,10014 | L102: 0 | M102: 161 | N102: 5 | O102: 9000103 | P102: 10006,10013,10014 | Q102: 200
A103: 99 | C103: 1-99 | D103: 1;2;3 | E103: =M102 -> 161 | F103: 8 | G103: 40 | H103: 40 | I103: 39200 | J103: 10007,10011,10014 | K103: 10005,10012,10014 | L103: 0 | M103: 162 | N103: 5 | O103: 9000103 | P103: 10006,10013,10014 | Q103: 200
A104: 100 | C104: 1-100 | D104: 1;2;3 | E104: 162 | F104: 8 | G104: 40 | H104: 40 | I104: 41588 | J104: 10007,10011,10014 | K104: 10005,10012,10014 | L104: 0 | M104: 163 | N104: 5 | O104: 9000103 | P104: 10006,10013,10014 | Q104: 200
A105: 101 | C105: 1-101 | D105: 1;2;3 | E105: 163 | F105: 8 | G105: 40 | H105: 40 | I105: 44122 | J105: 10007,10011,10014 | K105: 10005,10012,10014 | L105: 1 | M105: 164 | N105: 6 | O105: 9000104 | P105: 10006,10013,10014 | Q105: 200
A106: 102 | C106: 1-102 | D106: 1;2;3 | E106: 164 | F106: 8 | G106: 40 | H106: 40 | I106: 46810 | J106: 10007,10011,10014 | K106: 10005,10012,10014 | L106: 2 | M106: 165 | N106: 7 | O106: 9000105 | P106: 10006,10013,10014 | Q106: 200
A107: 103 | C107: 1-103 | D107: 1;2;3 | E107: 165 | F107: 8 | G107: 41 | H107: 41 | I107: 49660 | J107: 10007,10011,10014 | K107: 10005,10012,10014 | L107: 3 | M107: 166 | N107: 8 | O107: 9000106 | P107: 10006,10013,10014 | Q107: 200
A108: 104 | C108: 1-104 | D108: 1;2;3 | E108: 166 | F108: 9 | G108: 41 | H108: 41 | I108: 52684 | J108: 10007,10011,10014 | K108: 10005,10012,10014 | L108: 4 | M108: 167 | N108: 9 | O108: 9000107 | P108: 10006,10013,10014 | Q108: 200
A109: 105 | C109: 1-105 | D109: 1;2;3 | E109: 167 | F109: 9 | G109: 41 | H109: 41 | I109: 55892 | J109: 10007,10011,10014 | K109: 10005,10012,10014 | L109: 5 | M109: 168 | N109: 10 | O109: 9000108 | P109: 10006,10013,10014 | Q109: 200
A110: 106 | C110: 1-106 | D110: 1;2;3 | E110: 168 | F110: 9 | G110: 41 | H110: 41 | I110: 59296 | J110: 10007,10011,10014 | K110: 10005,10012,10014 | L110: 6 | M110: 169 | N110: 11 | O110: 9000109 | P110: 10006,10013,10014 | Q110: 200
A111: 107 | C111: 1-107 | D111: 1;2;3 | E111: 169 | F111: 9 | G111: 41 | H111: 41 | I111: 62906 | J111: 10007,10011,10014 | K111: 10005,10012,10014 | L111: 7 | M111: 170 | N111: 12 | O111: 9000110 | P111: 10006,10013,10014 | Q111: 200
A112: 108 | C112: 1-108 | D112: 1;2;3 | E112: 170 | F112: 9 | G112: 43 | H112: 43 | I112: 66738 | J112: 10007,10011,10014 | K112: 10005,10012,10014 | L112: 8 | M112: 171 | N112: 13 | O112: 9000111 | P112: 10006,10013,10014 | Q112: 200
A113: 109 | C113: 1-109 | D113: 1;2;3 | E113: 171 | F113: 9 | G113: 43 | H113: 43 | I113: 70802 | J113: 10007,10011,10014 | K113: 10005,10012,10014 | L113: 9 | M113: 172 | N113: 14 | O113: 9000112 | P113: 10006,10013,10014 | Q113: 200
A114: 110 | C114: 1-110 | D114: 1;2;3 | E114: 172 | F114: 9 | G114: 43 | H114: 43 | I114: 75114 | J114: 10007,10011,10014 | K114: 10005,10012,10014 | L114: 10 | M114: 173 | N114: 15 | O114: 9000113 | P114: 10006,10013,10014 | Q114: 200
A115: 111 | C115: 1-111 | D115: 1;2;3 | E115: 173 | F115: 9 | G115: 43 | H115: 43 | I115: 79690 | J115: 10007,10011,10014 | K115: 10005,10012,10014 | L115: 11 | M115: 175 | N115: 16 | O115: 9000114 | P115: 10006,10013,10014 | Q115: 200
A116: 112 | C116: 1-112 | D116: 1;2;3 | E116: 175 | F116: 9 | G116: 43 | H116: 43 | I116: 84542 | J116: 10007,10011,10014 | K116: 10005,10012,10014 | L116: 12 | M116: 177 | N116: 17 | O116: 9000115 | P116: 10006,10013,10014 | Q116: 200
A117: 113 | C117: 1-113 | D117: 1;2;3 | E117: 177 | F117: 9 | G117: 44 | H117: 44 | I117: 89690 | J117: 10007,10011,10014 | K117: 10005,10012,10014 | L117: 13 | M117: 179 | N117: 18 | O117: 9000116 | P117: 10006,10013,10014 | Q117: 200
A118: 114 | C118: 1-114 | D118: 1;2;3 | E118: 179 | F118: 9 | G118: 44 | H118: 44 | I118: 95152 | J118: 10007,10011,10014 | K118: 10005,10012,10014 | L118: 14 | M118: 181 | N118: 19 | O118: 9000117 | P118: 10006,10013,10014 | Q118: 200
A119: 115 | C119: 1-115 | D119: 1;2;3 | E119: 181 | F119: 9 | G119: 44 | H119: 44 | I119: 100946 | J119: 10007,10011,10014 | K119: 10005,10012,10014 | L119: 15 | M119: 183 | N119: 20 | O119: 9000118 | P119: 10006,10013,10014 | Q119: 200
A120: 116 | C120: 1-116 | D120: 1;2;3 | E120: 183 | F120: 9 | G120: 44 | H120: 44 | I120: 107094 | J120: 10007,10011,10014 | K120: 10005,10012,10014 | L120: 16 | M120: 185 | N120: 21 | O120: 9000119 | P120: 10006,10013,10014 | Q120: 200
A121: 117 | C121: 1-117 | D121: 1;2;3 | E121: 185 | F121: 9 | G121: 44 | H121: 44 | I121: 113616 | J121: 10007,10011,10014 | K121: 10005,10012,10014 | L121: 17 | M121: 187 | N121: 22 | O121: 9000120 | P121: 10006,10013,10014 | Q121: 200
A122: 118 | C122: 1-118 | D122: 1;2;3 | E122: 187 | F122: 9 | G122: 46 | H122: 46 | I122: 120534 | J122: 10007,10011,10014 | K122: 10005,10012,10014 | L122: 18 | M122: 189 | N122: 23 | O122: 9000121 | P122: 10006,10013,10014 | Q122: 200
A123: 119 | C123: 1-119 | D123: 1;2;3 | E123: 189 | F123: 9 | G123: 46 | H123: 46 | I123: 127874 | J123: 10007,10011,10014 | K123: 10005,10012,10014 | L123: 19 | M123: 191 | N123: 24 | O123: 9000122 | P123: 10006,10013,10014 | Q123: 200
A124: 120 | C124: 1-120 | D124: 1;2;3 | E124: 191 | F124: 9 | G124: 46 | H124: 46 | I124: 135662 | J124: 10007,10011,10014 | K124: 10005,10012,10014 | L124: 20 | M124: 193 | N124: 25 | O124: 9000123 | P124: 10006,10013,10014 | Q124: 200
A125: 121 | C125: 1-121 | D125: 1;2;3 | E125: 193 | F125: 9 | G125: 46 | H125: 46 | I125: 143924 | J125: 10007,10011,10014 | K125: 10005,10012,10014 | L125: 21 | M125: 195 | N125: 26 | O125: 9000124 | P125: 10006,10013,10014 | Q125: 200
A126: 122 | C126: 1-122 | D126: 1;2;3 | E126: 195 | F126: 9 | G126: 46 | H126: 46 | I126: 152690 | J126: 10007,10011,10014 | K126: 10005,10012,10014 | L126: 22 | M126: 197 | N126: 27 | O126: 9000125 | P126: 10006,10013,10014 | Q126: 200
A127: 123 | C127: 1-123 | D127: 1;2;3 | E127: 197 | F127: 9 | G127: 48 | H127: 48 | I127: 161988 | J127: 10007,10011,10014 | K127: 10005,10012,10014 | L127: 23 | M127: 199 | N127: 28 | O127: 9000126 | P127: 10006,10013,10014 | Q127: 200
A128: 124 | C128: 1-124 | D128: 1;2;3 | E128: 199 | F128: 9 | G128: 48 | H128: 48 | I128: 171854 | J128: 10007,10011,10014 | K128: 10005,10012,10014 | L128: 24 | M128: 201 | N128: 29 | O128: 9000127 | P128: 10006,10013,10014 | Q128: 200
A129: 125 | C129: 1-125 | D129: 1;2;3 | E129: 201 | F129: 9 | G129: 48 | H129: 48 | I129: 182320 | J129: 10007,10011,10014 | K129: 10005,10012,10014 | L129: 25 | M129: 203 | N129: 30 | O129: 9000128 | P129: 10006,10013,10014 | Q129: 200
A130: 126 | C130: 1-126 | D130: 1;2;3 | E130: 203 | F130: 10 | G130: 48 | H130: 48 | I130: 193424 | J130: 10007,10011,10014 | K130: 10005,10012,10014 | L130: 26 | M130: 206 | N130: 31 | O130: 9000129 | P130: 10006,10013,10014 | Q130: 200
A131: 127 | C131: 1-127 | D131: 1;2;3 | E131: 206 | F131: 10 | G131: 48 | H131: 48 | I131: 205202 | J131: 10007,10011,10014 | K131: 10005,10012,10014 | L131: 27 | M131: 209 | N131: 32 | O131: 9000130 | P131: 10006,10013,10014 | Q131: 200
A132: 128 | C132: 1-128 | D132: 1;2;3 | E132: 209 | F132: 10 | G132: 49 | H132: 49 | I132: 217698 | J132: 10007,10011,10014 | K132: 10005,10012,10014 | L132: 28 | M132: 212 | N132: 33 | O132: 9000131 | P132: 10006,10013,10014 | Q132: 200
A133: 129 | C133: 1-129 | D133: 1;2;3 | E133: 212 | F133: 10 | G133: 49 | H133: 49 | I133: 230954 | J133: 10007,10011,10014 | K133: 10005,10012,10014 | L133: 29 | M133: 215 | N133: 34 | O133: 9000132 | P133: 10006,10013,10014 | Q133: 200
A134: 130 | C134: 1-130 | D134: 1;2;3 | E134: 215 | F134: 10 | G134: 49 | H134: 49 | I134: 245018 | J134: 10007,10011,10014 | K134: 10005,10012,10014 | L134: 30 | M134: 218 | N134: 35 | O134: 9000133 | P134: 10006,10013,10014 | Q134: 200
A135: 131 | C135: 1-131 | D135: 1;2;3 | E135: =M134 -> 218 | F135: 10 | G135: 49 | H135: 49 | I135: 259940 | J135: 10007,10011,10014 | K135: 10005,10012,10014 | L135: 31 | M135: 221 | N135: 36 | O135: 9000134 | P135: 10006,10013,10014 | Q135: 200
A136: 132 | C136: 1-132 | D136: 1;2;3 | E136: 221 | F136: 10 | G136: 49 | H136: 49 | I136: 275770 | J136: 10007,10011,10014 | K136: 10005,10012,10014 | L136: 32 | M136: 224 | N136: 37 | O136: 9000135 | P136: 10006,10013,10014 | Q136: 200
A137: 133 | C137: 1-133 | D137: 1;2;3 | E137: 224 | F137: 10 | G137: 51 | H137: 51 | I137: 292566 | J137: 10007,10011,10014 | K137: 10005,10012,10014 | L137: 33 | M137: 227 | N137: 38 | O137: 9000136 | P137: 10006,10013,10014 | Q137: 200
A138: 134 | C138: 1-134 | D138: 1;2;3 | E138: 227 | F138: 10 | G138: 51 | H138: 51 | I138: 310382 | J138: 10007,10011,10014 | K138: 10005,10012,10014 | L138: 34 | M138: 230 | N138: 39 | O138: 9000137 | P138: 10006,10013,10014 | Q138: 200
A139: 135 | C139: 1-135 | D139: 1;2;3 | E139: 230 | F139: 10 | G139: 51 | H139: 51 | I139: 329284 | J139: 10007,10011,10014 | K139: 10005,10012,10014 | L139: 35 | M139: 233 | N139: 40 | O139: 9000138 | P139: 10006,10013,10014 | Q139: 200
A140: 136 | C140: 1-136 | D140: 1;2;3 | E140: 233 | F140: 10 | G140: 51 | H140: 51 | I140: 349336 | J140: 10007,10011,10014 | K140: 10005,10012,10014 | L140: 36 | M140: 236 | N140: 41 | O140: 9000139 | P140: 10006,10013,10014 | Q140: 200
A141: 137 | C141: 1-137 | D141: 1;2;3 | E141: 236 | F141: 10 | G141: 51 | H141: 51 | I141: 370610 | J141: 10007,10011,10014 | K141: 10005,10012,10014 | L141: 37 | M141: 239 | N141: 42 | O141: 9000140 | P141: 10006,10013,10014 | Q141: 200
A142: 138 | C142: 1-138 | D142: 1;2;3 | E142: 239 | F142: 10 | G142: 52 | H142: 52 | I142: 393180 | J142: 10007,10011,10014 | K142: 10005,10012,10014 | L142: 38 | M142: 242 | N142: 43 | O142: 9000141 | P142: 10006,10013,10014 | Q142: 200
A143: 139 | C143: 1-139 | D143: 1;2;3 | E143: 242 | F143: 10 | G143: 52 | H143: 52 | I143: 417126 | J143: 10007,10011,10014 | K143: 10005,10012,10014 | L143: 39 | M143: 245 | N143: 44 | O143: 9000142 | P143: 10006,10013,10014 | Q143: 200
A144: 140 | C144: 1-140 | D144: 1;2;3 | E144: 245 | F144: 10 | G144: 52 | H144: 52 | I144: 442530 | J144: 10007,10011,10014 | K144: 10005,10012,10014 | L144: 40 | M144: 249 | N144: 45 | O144: 9000143 | P144: 10006,10013,10014 | Q144: 200
A145: 141 | C145: 1-141 | D145: 1;2;3 | E145: 249 | F145: 10 | G145: 52 | H145: 52 | I145: 469480 | J145: 10007,10011,10014 | K145: 10005,10012,10014 | L145: 41 | M145: 253 | N145: 46 | O145: 9000144 | P145: 10006,10013,10014 | Q145: 200
A146: 142 | C146: 1-142 | D146: 1;2;3 | E146: 253 | F146: 10 | G146: 52 | H146: 52 | I146: 498070 | J146: 10007,10011,10014 | K146: 10005,10012,10014 | L146: 42 | M146: 257 | N146: 47 | O146: 9000145 | P146: 10006,10013,10014 | Q146: 200
A147: 143 | C147: 1-143 | D147: 1;2;3 | E147: 257 | F147: 10 | G147: 54 | H147: 54 | I147: 528402 | J147: 10007,10011,10014 | K147: 10005,10012,10014 | L147: 43 | M147: 261 | N147: 48 | O147: 9000146 | P147: 10006,10013,10014 | Q147: 200
A148: 144 | C148: 1-144 | D148: 1;2;3 | E148: 261 | F148: 10 | G148: 54 | H148: 54 | I148: 560582 | J148: 10007,10011,10014 | K148: 10005,10012,10014 | L148: 44 | M148: 265 | N148: 49 | O148: 9000147 | P148: 10006,10013,10014 | Q148: 200
A149: 145 | C149: 1-145 | D149: 1;2;3 | E149: 265 | F149: 10 | G149: 54 | H149: 54 | I149: 594722 | J149: 10007,10011,10014 | K149: 10005,10012,10014 | L149: 45 | M149: 269 | N149: 50 | O149: 9000148 | P149: 10006,10013,10014 | Q149: 200
A150: 146 | C150: 1-146 | D150: 1;2;3 | E150: 269 | F150: 10 | G150: 54 | H150: 54 | I150: 630940 | J150: 10007,10011,10014 | K150: 10005,10012,10014 | L150: 46 | M150: 273 | N150: 51 | O150: 9000149 | P150: 10006,10013,10014 | Q150: 200
A151: 147 | C151: 1-147 | D151: 1;2;3 | E151: 273 | F151: 10 | G151: 54 | H151: 54 | I151: 669364 | J151: 10007,10011,10014 | K151: 10005,10012,10014 | L151: 47 | M151: 277 | N151: 52 | O151: 9000150 | P151: 10006,10013,10014 | Q151: 200
A152: 148 | C152: 1-148 | D152: 1;2;3 | E152: 277 | F152: 10 | G152: 55 | H152: 55 | I152: 710128 | J152: 10007,10011,10014 | K152: 10005,10012,10014 | L152: 48 | M152: 281 | N152: 53 | O152: 9000151 | P152: 10006,10013,10014 | Q152: 200
A153: 149 | C153: 1-149 | D153: 1;2;3 | E153: 281 | F153: 10 | G153: 55 | H153: 55 | I153: 753374 | J153: 10007,10011,10014 | K153: 10005,10012,10014 | L153: 49 | M153: 285 | N153: 54 | O153: 9000152 | P153: 10006,10013,10014 | Q153: 200
A154: 150 | C154: 1-150 | D154: 1;2;3 | E154: 285 | F154: 10 | G154: 55 | H154: 55 | I154: 799256 | J154: 10007,10011,10014 | K154: 10005,10012,10014 | L154: 50 | M154: 300 | N154: 55 | O154: 9000153 | P154: 10006,10013,10014 | Q154: 200

Sheet MonsterWavesConfig
A1: ID | B1: wavesDelay | D1: monsterGroupConfigId | E1: miniMonsterCount | F1: eliteMonsterCount
A2: int | B2: int | D2: int[] | E2: int[] | F2: int[]
A4: ID | B4: 物品表的ID 掉落道具 | C4: VLOOKUP 语言表中的实际值 (策划看) | D4: 每一波可以刷出来的怪物组 | E4: 每一波可以耍的小怪数量 | F4: 每一波可以耍的精英怪数量
A5: 1 | B5: 5 | D5: 1;1;2 | E5: 5;5;5 | F5: 0;0;0
A6: 2 | B6: 5 | D6: 1;2;2 | E6: 5;10;20 | F6: 0;0;1
A7: 3 | B7: 5 | D7: 1;2;2 | E7: 5;10;20 | F7: 0;0;1
A8: 4 | B8: 5 | D8: 3;4;4 | E8: 10;10;20 | F8: 0;0;0
A9: 5 | B9: 5 | D9: 3;4;4 | E9: 10;10;20 | F9: 0;0;1
A10: 6 | B10: 5 | D10: 3;4;4 | E10: 10;10;20 | F10: 0;0;1
A11: 7 | B11: 5 | D11: 3;4;4 | E11: 10;10;20 | F11: 0;0;0
A12: 8 | B12: 5 | D12: 3;4;4 | E12: 10;10;20 | F12: 0;0;1
A13: 9 | B13: 5 | D13: 3;4;4 | E13: 10;10;20 | F13: 0;0;1
A14: 10 | B14: 5 | D14: 3;4;4 | E14: 10;10;20 | F14: 0;0;0
A15: 11 | B15: 5 | D15: 3;4;4 | E15: 10;10;20 | F15: 0;0;1
A16: 12 | B16: 5 | D16: 3;4;4 | E16: 10;10;20 | F16: 0;0;1
A17: 13 | B17: 5 | D17: 3;4;4 | E17: 10;10;20 | F17: 0;0;0
A18: 14 | B18: 5 | D18: 3;4;4 | E18: 10;10;20 | F18: 0;0;1
A19: 15 | B19: 5 | D19: 3;4;4 | E19: 10;10;20 | F19: 0;0;1
A20: 16 | B20: 5 | D20: 3;4;4 | E20: 10;10;20 | F20: 0;0;0
A21: 17 | B21: 5 | D21: 3;4;4 | E21: 10;10;20 | F21: 0;0;1
A22: 18 | B22: 5 | D22: 3;4;4 | E22: 10;10;20 | F22: 0;0;1
A23: 19 | B23: 5 | D23: 3;4;4 | E23: 10;10;20 | F23: 0;0;0
A24: 20 | B24: 5 | D24: 3;4;4 | E24: 10;10;20 | F24: 0;0;1
A25: 21 | B25: 5 | D25: 3;4;4 | E25: 10;10;20 | F25: 0;0;1
A26: 22 | B26: 5 | D26: 3;4;4 | E26: 10;10;20 | F26: 0;0;0
A27: 23 | B27: 5 | D27: 3;4;4 | E27: 10;10;20 | F27: 0;0;1
A28: 24 | B28: 5 | D28: 3;4;4 | E28: 10;10;20 | F28: 0;0;1
A29: 25 | B29: 5 | D29: 3;4;4 | E29: 10;10;20 | F29: 0;0;0
A30: 26 | B30: 5 | D30: 3;4;4 | E30: 10;10;20 | F30: 0;0;1
A31: 27 | B31: 5 | D31: 3;4;4 | E31: 10;10;20 | F31: 0;0;1
A32: 28 | B32: 5 | D32: 3;4;4 | E32: 10;10;20 | F32: 0;0;0
A33: 29 | B33: 5 | D33: 3;4;4 | E33: 10;10;20 | F33: 0;0;1
A34: 30 | B34: 5 | D34: 3;4;4 | E34: 10;10;20 | F34: 0;0;1
A35: 31 | B35: 5 | D35: 3;4;4 | E35: 10;10;20 | F35: 0;0;0
A36: 32 | B36: 5 | D36: 3;4;4 | E36: 10;10;20 | F36: 0;0;1
A37: 33 | B37: 5 | D37: 3;4;4 | E37: 10;10;20 | F37: 0;0;1
A38: 34 | B38: 5 | D38: 3;4;4 | E38: 10;10;20 | F38: 0;0;0
A39: 35 | B39: 5 | D39: 3;4;4 | E39: 10;10;20 | F39: 0;0;1
A40: 36 | B40: 5 | D40: 3;4;4 | E40: 10;10;20 | F40: 0;0;1
A41: 37 | B41: 5 | D41: 3;4;4 | E41: 10;10;20 | F41: 0;0;0
A42: 38 | B42: 5 | D42: 3;4;4 | E42: 10;10;20 | F42: 0;0;1
A43: 39 | B43: 5 | D43: 3;4;4 | E43: 10;10;20 | F43: 0;0;1
A44: 40 | B44: 5 | D44: 3;4;4 | E44: 10;10;20 | F44: 0;0;0
A45: 41 | B45: 5 | D45: 3;4;4 | E45: 10;10;20 | F45: 0;0;1
A46: 42 | B46: 5 | D46: 3;4;4 | E46: 10;10;20 | F46: 0;0;1
A47: 43 | B47: 5 | D47: 3;4;4 | E47: 10;10;20 | F47: 0;0;0
A48: 44 | B48: 5 | D48: 3;4;4 | E48: 10;10;20 | F48: 0;0;1
A49: 45 | B49: 5 | D49: 3;4;4 | E49: 10;10;20 | F49: 0;0;1
A50: 46 | B50: 5 | D50: 3;4;4 | E50: 10;10;20 | F50: 0;0;0
A51: 47 | B51: 5 | D51: 3;4;4 | E51: 10;10;20 | F51: 0;0;1
A52: 48 | B52: 5 | D52: 3;4;4 | E52: 10;10;20 | F52: 0;0;1
A53: 49 | B53: 5 | D53: 3;4;4 | E53: 10;10;20 | F53: 0;0;0
A54: 50 | B54: 5 | D54: 3;4;4 | E54: 10;10;20 | F54: 0;0;1
A55: 51 | B55: 5 | D55: 3;4;4 | E55: 10;10;20 | F55: 0;0;1
A56: 52 | B56: 5 | D56: 3;4;4 | E56: 10;10;20 | F56: 0;0;0
A57: 53 | B57: 5 | D57: 3;4;4 | E57: 10;10;20 | F57: 0;0;1
A58: 54 | B58: 5 | D58: 3;4;4 | E58: 10;10;20 | F58: 0;0;1
A59: 55 | B59: 5 | D59: 3;4;4 | E59: 10;10;20 | F59: 0;0;0
A60: 56 | B60: 5 | D60: 3;4;4 | E60: 10;10;20 | F60: 0;0;1
A61: 57 | B61: 5 | D61: 3;4;4 | E61: 10;10;20 | F61: 0;0;1
A62: 58 | B62: 5 | D62: 3;4;4 | E62: 10;10;20 | F62: 0;0;0
A63: 59 | B63: 5 | D63: 3;4;4 | E63: 10;10;20 | F63: 0;0;1
A64: 60 | B64: 5 | D64: 3;4;4 | E64: 10;10;20 | F64: 0;0;1
A65: 61 | B65: 5 | D65: 3;4;4 | E65: 10;10;20 | F65: 0;0;0
A66: 62 | B66: 5 | D66: 3;4;4 | E66: 10;10;20 | F66: 0;0;1
A67: 63 | B67: 5 | D67: 3;4;4 | E67: 10;10;20 | F67: 0;0;1
A68: 64 | B68: 5 | D68: 3;4;4 | E68: 10;10;20 | F68: 0;0;0
A69: 65 | B69: 5 | D69: 3;4;4 | E69: 10;10;20 | F69: 0;0;1
A70: 66 | B70: 5 | D70: 3;4;4 | E70: 10;10;20 | F70: 0;0;1
A71: 67 | B71: 5 | D71: 3;4;4 | E71: 10;10;20 | F71: 0;0;0
A72: 68 | B72: 5 | D72: 3;4;4 | E72: 10;10;20 | F72: 0;0;1
A73: 69 | B73: 5 | D73: 3;4;4 | E73: 10;10;20 | F73: 0;0;1
A74: 70 | B74: 5 | D74: 3;4;4 | E74: 10;10;20 | F74: 0;0;0
A75: 71 | B75: 5 | D75: 3;4;4 | E75: 10;10;20 | F75: 0;0;1
A76: 72 | B76: 5 | D76: 3;4;4 | E76: 10;10;20 | F76: 0;0;1
A77: 73 | B77: 5 | D77: 3;4;4 | E77: 10;10;20 | F77: 0;0;0
A78: 74 | B78: 5 | D78: 3;4;4 | E78: 10;10;20 | F78: 0;0;1
A79: 75 | B79: 5 | D79: 3;4;4 | E79: 10;10;20 | F79: 0;0;1
A80: 76 | B80: 5 | D80: 3;4;4 | E80: 10;10;20 | F80: 0;0;0
A81: 77 | B81: 5 | D81: 3;4;4 | E81: 10;10;20 | F81: 0;0;1
A82: 78 | B82: 5 | D82: 3;4;4 | E82: 10;10;20 | F82: 0;0;1
A83: 79 | B83: 5 | D83: 3;4;4 | E83: 10;10;20 | F83: 0;0;0
A84: 80 | B84: 5 | D84: 3;4;4 | E84: 10;10;20 | F84: 0;0;1
A85: 81 | B85: 5 | D85: 3;4;4 | E85: 10;10;20 | F85: 0;0;1
A86: 82 | B86: 5 | D86: 3;4;4 | E86: 10;10;20 | F86: 0;0;0
A87: 83 | B87: 5 | D87: 3;4;4 | E87: 10;10;20 | F87: 0;0;1
A88: 84 | B88: 5 | D88: 3;4;4 | E88: 10;10;20 | F88: 0;0;1
A89: 85 | B89: 5 | D89: 3;4;4 | E89: 10;10;20 | F89: 0;0;0
A90: 86 | B90: 5 | D90: 3;4;4 | E90: 10;10;20 | F90: 0;0;1
A91: 87 | B91: 5 | D91: 3;4;4 | E91: 10;10;20 | F91: 0;0;1
A92: 88 | B92: 5 | D92: 3;4;4 | E92: 10;10;20 | F92: 0;0;0
A93: 89 | B93: 5 | D93: 3;4;4 | E93: 10;10;20 | F93: 0;0;1
A94: 90 | B94: 5 | D94: 3;4;4 | E94: 10;10;20 | F94: 0;0;1
A95: 91 | B95: 5 | D95: 3;4;4 | E95: 10;10;20 | F95: 0;0;0
A96: 92 | B96: 5 | D96: 3;4;4 | E96: 10;10;20 | F96: 0;0;1
A97: 93 | B97: 5 | D97: 3;4;4 | E97: 10;10;20 | F97: 0;0;1
A98: 94 | B98: 5 | D98: 3;4;4 | E98: 10;10;20 | F98: 0;0;0
A99: 95 | B99: 5 | D99: 3;4;4 | E99: 10;10;20 | F99: 0;0;1
A100: 96 | B100: 5 | D100: 3;4;4 | E100: 10;10;20 | F100: 0;0;1
A101: 97 | B101: 5 | D101: 3;4;4 | E101: 10;10;20 | F101: 0;0;0
A102: 98 | B102: 5 | D102: 3;4;4 | E102: 10;10;20 | F102: 0;0;1
A103: 99 | B103: 5 | D103: 3;4;4 | E103: 10;10;20 | F103: 0;0;1
A104: 100 | B104: 5 | D104: 3;4;4 | E104: 10;10;20 | F104: 0;0;0
A105: 101 | B105: 5 | D105: 3;4;4 | E105: 10;10;20 | F105: 0;0;1
A106: 102 | B106: 5 | D106: 3;4;4 | E106: 10;10;20 | F106: 0;0;1
A107: 103 | B107: 5 | D107: 3;4;4 | E107: 10;10;20 | F107: 0;0;0
A108: 104 | B108: 5 | D108: 3;4;4 | E108: 10;10;20 | F108: 0;0;1
A109: 105 | B109: 5 | D109: 3;4;4 | E109: 10;10;20 | F109: 0;0;1
A110: 106 | B110: 5 | D110: 3;4;4 | E110: 10;10;20 | F110: 0;0;0
A111: 107 | B111: 5 | D111: 3;4;4 | E111: 10;10;20 | F111: 0;0;1
A112: 108 | B112: 5 | D112: 3;4;4 | E112: 10;10;20 | F112: 0;0;1
A113: 109 | B113: 5 | D113: 3;4;4 | E113: 10;10;20 | F113: 0;0;0
A114: 110 | B114: 5 | D114: 3;4;4 | E114: 10;10;20 | F114: 0;0;1
A115: 111 | B115: 5 | D115: 3;4;4 | E115: 10;10;20 | F115: 0;0;1
A116: 112 | B116: 5 | D116: 3;4;4 | E116: 10;10;20 | F116: 0;0;0
A117: 113 | B117: 5 | D117: 3;4;4 | E117: 10;10;20 | F117: 0;0;1
A118: 114 | B118: 5 | D118: 3;4;4 | E118: 10;10;20 | F118: 0;0;1
A119: 115 | B119: 5 | D119: 3;4;4 | E119: 10;10;20 | F119: 0;0;0
A120: 116 | B120: 5 | D120: 3;4;4 | E120: 10;10;20 | F120: 0;0;1
A121: 117 | B121: 5 | D121: 3;4;4 | E121: 10;10;20 | F121: 0;0;1
A122: 118 | B122: 5 | D122: 3;4;4 | E122: 10;10;20 | F122: 0;0;0
A123: 119 | B123: 5 | D123: 3;4;4 | E123: 10;10;20 | F123: 0;0;1
A124: 120 | B124: 5 | D124: 3;4;4 | E124: 10;10;20 | F124: 0;0;1
A125: 121 | B125: 5 | D125: 3;4;4 | E125: 10;10;20 | F125: 0;0;0
A126: 122 | B126: 5 | D126: 3;4;4 | E126: 10;10;20 | F126: 0;0;1
A127: 123 | B127: 5 | D127: 3;4;4 | E127: 10;10;20 | F127: 0;0;1
A128: 124 | B128: 5 | D128: 3;4;4 | E128: 10;10;20 | F128: 0;0;0
A129: 125 | B129: 5 | D129: 3;4;4 | E129: 10;10;20 | F129: 0;0;1
A130: 126 | B130: 5 | D130: 3;4;4 | E130: 10;10;20 | F130: 0;0;1
A131: 127 | B131: 5 | D131: 3;4;4 | E131: 10;10;20 | F131: 0;0;0
A132: 128 | B132: 5 | D132: 3;4;4 | E132: 10;10;20 | F132: 0;0;1
A133: 129 | B133: 5 | D133: 3;4;4 | E133: 10;10;20 | F133: 0;0;1
A134: 130 | B134: 5 | D134: 3;4;4 | E134: 10;10;20 | F134: 0;0;0
A135: 131 | B135: 5 | D135: 3;4;4 | E135: 10;10;20 | F135: 0;0;1
A136: 132 | B136: 5 | D136: 3;4;4 | E136: 10;10;20 | F136: 0;0;1
A137: 133 | B137: 5 | D137: 3;4;4 | E137: 10;10;20 | F137: 0;0;0
A138: 134 | B138: 5 | D138: 3;4;4 | E138: 10;10;20 | F138: 0;0;1
A139: 135 | B139: 5 | D139: 3;4;4 | E139: 10;10;20 | F139: 0;0;1
A140: 136 | B140: 5 | D140: 3;4;4 | E140: 10;10;20 | F140: 0;0;0
A141: 137 | B141: 5 | D141: 3;4;4 | E141: 10;10;20 | F141: 0;0;1
A142: 138 | B142: 5 | D142: 3;4;4 | E142: 10;10;20 | F142: 0;0;1
A143: 139 | B143: 5 | D143: 3;4;4 | E143: 10;10;20 | F143: 0;0;0
A144: 140 | B144: 5 | D144: 3;4;4 | E144: 10;10;20 | F144: 0;0;1
A145: 141 | B145: 5 | D145: 3;4;4 | E145: 10;10;20 | F145: 0;0;1
A146: 142 | B146: 5 | D146: 3;4;4 | E146: 10;10;20 | F146: 0;0;0
A147: 143 | B147: 5 | D147: 3;4;4 | E147: 10;10;20 | F147: 0;0;1
A148: 144 | B148: 5 | D148: 3;4;4 | E148: 10;10;20 | F148: 0;0;1
A149: 145 | B149: 5 | D149: 3;4;4 | E149: 10;10;20 | F149: 0;0;0
A150: 146 | B150: 5 | D150: 3;4;4 | E150: 10;10;20 | F150: 0;0;1
A151: 147 | B151: 5 | D151: 3;4;4 | E151: 10;10;20 | F151: 0;0;1
A152: 148 | B152: 5 | D152: 3;4;4 | E152: 10;10;20 | F152: 0;0;0
A153: 149 | B153: 5 | D153: 3;4;4 | E153: 10;10;20 | F153: 0;0;1
A154: 150 | B154: 5 | D154: 3;4;4 | E154: 10;10;20 | F154: 0;0;2
A155: 151 | B155: 5 | D155: 3;4;4 | E155: 10;10;20 | F155: 0;0;3
A156: 152 | B156: 5 | D156: 3;4;4 | E156: 10;10;20 | F156: 0;0;4
A157: 153 | B157: 5 | D157: 3;4;4 | E157: 10;10;20 | F157: 0;0;5

Sheet MonsterGroupConfig
A1: ID | B1: miniMonsterId | C1: eliteMonsterId
A2: int | B2: int[] | C2: int[]
A4: ID | B4: 全部可以刷的小怪怪物组 | C4: 全部可以耍的精英怪组
A5: 1 | B5: 9000101;9000107;9000108;9000109;9000101;9000107;9000101;9000107
A6: 2 | B6: 9000101;9000107;9000108;9000109;9000101;9000107;9000101;9000107 | C6: 9000102;9000105;9000102
A7: 3 | B7: 9000104;9000107;9000108;9000109;9000101;9000107;9000101;9000107
A8: 4 | B8: 9000104;9000107;9000108;9000109;9000101;9000107;9000101;9000107 | C8: 9000102;9000105;9000105

Sheet 产出
E1: 实际单个怪经验产出 | K1: 多少波升级一次 | M1: 英雄数量 | P1: 阶段额外提升经验 | X1: =SUBTOTAL(9,D2:D210) -> 485883 | Y1: =SUBTOTAL(9,E2:E250)/250 -> 14.48
A2: 1 | B2: 40 | D2: 60 | E2: =ROUND(D2/B2/K2*M2*(1+ROUND(A2/10,0)*$Q$2)/3,0) -> 10 | K2: 0.2 | M2: 4 | O2: =D3/D2 -> 1.033333333 | P2: 0 | Q2: 0.15 | R2: 0.1 | S2: =D2*2 -> 120 | T2: 1 | U2: =IF(MOD(A2,2)=0,0,E2) -> 10 | V2: =IF(MOD(A2,2)=0,0,S2) -> 120 | X2: =X1*4 -> 1943532 | Y2: =Y1*40 -> 579.2 | Z2: 100 | AA2: =Z2*E2/D2/4 -> 4.166666667 | AB2: =SUBTOTAL(9,AA2:AA124) -> 121.9863611 | AC2: =SUBTOTAL(9,AA2:AA52) -> 80.7352567 | AD2: =SUM(D2:D51)*4 -> 26908 | AE2: 4
A3: 2 | B3: 40 | D3: 62 | E3: =ROUND(D3/B3/K3*M3*(1+ROUND(A3/10,0)*$Q$2)/3,0) -> 10 | K3: =K2*O2 -> 0.2066666667 | M3: 4 | O3: =D4/D3 -> 1.032258065 | P3: 0 | T3: 2 | U3: =IF(MOD(A3,2)=0,0,E3) -> 0
A4: 3 | B4: 40 | D4: 64 | E4: 10 | K4: =K3*O3 -> 0.2133333333 | M4: 4 | O4: =D5/D4 -> 1.03125 | P4: 0 | S4: =D4*2 -> 128 | T4: 3 | U4: =IF(MOD(A4,2)=0,0,E4) -> 10 | V4: =IF(MOD(A4,2)=0,0,S4) -> 128 | Y4: =X2/Y2 -> 3355.54558 | Z4: 100 | AA4: =Z4*E4/D4/4 -> 3.90625 | AE4: =ROUND(AA4+AE2,0) -> 8
A5: 4 | B5: 40 | D5: 66 | E5: 10 | K5: =K4*O4 -> 0.22 | M5: 4 | O5: =D6/D5 -> 1.03030303 | P5: 0 | T5: 4 | U5: =IF(MOD(A5,2)=0,0,E5) -> 0
A6: 5 | B6: 40 | D6: 68 | E6: 12 | K6: 0.2266666667 | M6: 4 | O6: 1.029411765 | P6: 0 | S6: =D6*2 -> 136 | T6: 5 | U6: 12 | V6: =IF(MOD(A6,2)=0,0,S6) -> 136 | Y6: =Y4/1.5/60/24 -> 1.553493324 | Z6: 100 | AA6: =Z6*E6/D6/4 -> 4.411764706 | AE6: =ROUND(AA6+AE4,0) -> 12
A7: 6 | B7: 40 | D7: 70 | E7: 12 | K7: 0.2333333333 | M7: 4 | O7: 1.028571429 | P7: 0 | T7: 6 | U7: 0
A8: 7 | B8: 40 | D8: 72 | E8: 12 | K8: 0.24 | M8: 4 | O8: 1.027777778 | P8: 0 | S8: =D8*2 -> 144 | T8: 7 | U8: 12 | V8: =IF(MOD(A8,2)=0,0,S8) -> 144 | Z8: 100 | AA8: =Z8*E8/D8/4 -> 4.166666667 | AE8: =ROUND(AA8+AE6,0) -> 16
A9: 8 | B9: 40 | D9: 74 | E9: 12 | K9: 0.2466666667 | M9: 4 | O9: 1.027027027 | P9: 0 | T9: 8 | U9: 0 | Z9: 170
A10: 9 | B10: 40 | D10: 76 | E10: 12 | K10: 0.2533333333 | M10: 4 | O10: 1.026315789 | P10: 0 | S10: =D10*2 -> 152 | T10: 9 | U10: 12 | V10: =IF(MOD(A10,2)=0,0,S10) -> 152 | Z10: 100 | AA10: =Z10*E10/D10/4 -> 3.947368421 | AE10: =ROUND(AA10+AE8,0) -> 20
A11: 10 | B11: 40 | D11: 78 | E11: 12 | K11: 0.26 | M11: 4 | O11: 1.025641026 | P11: 0.1 | T11: 10 | U11: 0 | Z11: 190
A12: 11 | B12: 40 | D12: 80 | E12: 12 | K12: 0.2666666667 | M12: 4 | O12: 1.025 | P12: 0.1 | S12: =D12*2 -> 160 | T12: 11 | U12: 12 | V12: =IF(MOD(A12,2)=0,0,S12) -> 160 | Z12: 100 | AA12: =Z12*E12/D12/4 -> 3.75 | AE12: =ROUND(AA12+AE10,0) -> 24
A13: 12 | B13: 40 | D13: 82 | E13: 12 | K13: 0.2733333333 | M13: 4 | O13: 1.024390244 | P13: 0.1 | T13: 12 | U13: 0 | Z13: 210
A14: 13 | B14: 40 | D14: 84 | E14: 12 | K14: 0.28 | M14: 4 | O14: 1.035714286 | P14: 0.1 | S14: =D14*2 -> 168 | T14: 13 | U14: 12 | V14: =IF(MOD(A14,2)=0,0,S14) -> 168 | Z14: 100 | AA14: =Z14*E14/D14/4 -> 3.571428571 | AE14: =ROUND(AA14+AE12,0) -> 28
A15: 14 | B15: 40 | D15: 87 | E15: 12 | K15: 0.29 | M15: 4 | O15: 1.034482759 | P15: 0.1 | T15: 14 | U15: 0 | Z15: 230
A16: 15 | B16: 40 | D16: 90 | E16: 13 | K16: 0.3 | M16: 4 | O16: 1.033333333 | P16: 0.1 | S16: =D16*2 -> 180 | T16: 15 | U16: 13 | V16: =IF(MOD(A16,2)=0,0,S16) -> 180 | Z16: 100 | AA16: =Z16*E16/D16/4 -> 3.611111111 | AE16: =ROUND(AA16+AE14,0) -> 32
A17: 16 | B17: 40 | D17: 93 | E17: 13 | K17: 0.31 | M17: 4 | O17: =D18/D17 -> 1.032258065 | P17: 0.1 | T17: 16 | U17: 0 | Z17: 250
A18: 17 | B18: 40 | D18: 96 | E18: 13 | K18: 0.32 | M18: 4 | O18: 1.03125 | P18: 0.1 | S18: =D18*2 -> 192 | T18: 17 | U18: 13 | V18: =IF(MOD(A18,2)=0,0,S18) -> 192 | Z18: 100 | AA18: =Z18*E18/D18/4 -> 3.385416667 | AE18: =ROUND(AA18+AE16,0) -> 35
A19: 18 | B19: 40 | D19: 99 | E19: 13 | K19: 0.33 | M19: 4 | O19: 1.03030303 | P19: 0.1 | T19: 18 | U19: 0 | Z19: 270
A20: 19 | B20: 40 | D20: 102 | E20: 13 | K20: 0.34 | M20: 4 | O20: 1.029411765 | P20: 0.1 | S20: =D20*2 -> 204 | T20: 19 | U20: 13 | V20: =IF(MOD(A20,2)=0,0,S20) -> 204 | Z20: 110 | AA20: =Z20*E20/D20/4 -> 3.504901961 | AE20: =ROUND(AA20+AE18,0) -> 39
A21: 20 | B21: 40 | D21: 105 | E21: 13 | K21: 0.35 | M21: 4 | O21: 1.028571429 | P21: 0.2 | T21: 20 | U21: 0 | Z21: 290
A22: 21 | B22: 40 | D22: 108 | E22: 13 | K22: 0.36 | M22: 4 | O22: 1.027777778 | P22: 0.2 | S22: =D22*2 -> 216 | T22: 21 | U22: 13 | V22: =IF(MOD(A22,2)=0,0,S22) -> 216 | Z22: 110 | AA22: =Z22*E22/D22/4 -> 3.310185185 | AE22: =ROUND(AA22+AE20,0) -> 42
A23: 22 | B23: 40 | D23: 111 | E23: 13 | K23: 0.37 | M23: 4 | O23: 1.027027027 | P23: 0.2 | T23: 22 | U23: 0 | Z23: 310
A24: 23 | B24: 40 | D24: 114 | E24: 13 | K24: 0.38 | M24: 4 | O24: 1.026315789 | P24: 0.2 | S24: =D24*2 -> 228 | T24: 23 | U24: 13 | V24: =IF(MOD(A24,2)=0,0,S24) -> 228 | Z24: 110 | AA24: =Z24*E24/D24/4 -> 3.135964912 | AE24: =ROUND(AA24+AE22,0) -> 45
A25: 24 | B25: 40 | D25: 117 | E25: 13 | K25: 0.39 | M25: 4 | O25: 1.034188034 | P25: 0.2 | T25: 24 | U25: 0 | Z25: 330
A26: 25 | B26: 40 | D26: 121 | E26: 15 | K26: 0.4033333333 | M26: 4 | O26: 1.033057851 | P26: 0.2 | S26: =D26*2 -> 242 | T26: 25 | U26: 15 | V26: =IF(MOD(A26,2)=0,0,S26) -> 242 | Z26: 110 | AA26: =Z26*E26/D26/4 -> 3.409090909 | AE26: =ROUND(AA26+AE24,0) -> 48
A27: 26 | B27: 40 | D27: 125 | E27: 15 | K27: 0.4166666667 | M27: 4 | O27: 1.032 | P27: 0.2 | T27: 26 | U27: 0 | Z27: 350
A28: 27 | B28: 40 | D28: 129 | E28: 15 | K28: 0.43 | M28: 4 | O28: 1.031007752 | P28: 0.2 | S28: =D28*2 -> 258 | T28: 27 | U28: 15 | V28: =IF(MOD(A28,2)=0,0,S28) -> 258 | Z28: 110 | AA28: =Z28*E28/D28/4 -> 3.197674419 | AE28: =ROUND(AA28+AE26,0) -> 51
A29: 28 | B29: 40 | D29: 133 | E29: 15 | K29: 0.4433333333 | M29: 4 | O29: 1.030075188 | P29: 0.2 | T29: 28 | U29: 0 | Z29: 370
A30: 29 | B30: 40 | D30: 137 | E30: 15 | K30: 0.4566666667 | M30: 4 | O30: 1.02919708 | P30: 0.2 | S30: =D30*2 -> 274 | T30: 29 | U30: 15 | V30: =IF(MOD(A30,2)=0,0,S30) -> 274 | Z30: 110 | AA30: =Z30*E30/D30/4 -> 3.010948905 | AE30: =ROUND(AA30+AE28,0) -> 54
A31: 30 | B31: 40 | D31: 141 | E31: 15 | K31: 0.47 | M31: 4 | O31: 1.028368794 | P31: 0.3 | T31: 30 | U31: 0 | Z31: 390
A32: 31 | B32: 40 | D32: 145 | E32: 15 | K32: 0.4833333333 | M32: 4 | O32: 1.027586207 | P32: 0.3 | S32: =D32*2 -> 290 | T32: 31 | U32: 15 | V32: =IF(MOD(A32,2)=0,0,S32) -> 290 | Z32: 110 | AA32: =Z32*E32/D32/4 -> 2.844827586 | AE32: =ROUND(AA32+AE30,0) -> 57
A33: 32 | B33: 40 | D33: 149 | E33: 15 | K33: 0.4966666667 | M33: 4 | O33: 1.026845638 | P33: 0.3 | T33: 32 | U33: 0 | Z33: 410
A34: 33 | B34: 40 | D34: 153 | E34: 15 | K34: 0.51 | M34: 4 | O34: 1.032679739 | P34: 0.3 | S34: =D34*2 -> 306 | T34: 33 | U34: 15 | V34: =IF(MOD(A34,2)=0,0,S34) -> 306 | Z34: 110 | AA34: =Z34*E34/D34/4 -> 2.696078431 | AE34: =ROUND(AA34+AE32,0) -> 60
A35: 34 | B35: 40 | D35: 158 | E35: 15 | K35: 0.5266666667 | M35: 4 | O35: 1.03164557 | P35: 0.3 | T35: 34 | U35: 0 | Z35: 430
A36: 35 | B36: 40 | D36: 163 | E36: 16 | K36: 0.5433333333 | M36: 4 | O36: 1.030674847 | P36: 0.3 | S36: =D36*2 -> 326 | T36: 35 | U36: 16 | V36: =IF(MOD(A36,2)=0,0,S36) -> 326 | Z36: 110 | AA36: =Z36*E36/D36/4 -> 2.699386503 | AE36: =ROUND(AA36+AE34,0) -> 63
A37: 36 | B37: 40 | D37: 168 | E37: 16 | K37: 0.56 | M37: 4 | O37: 1.029761905 | P37: 0.3 | T37: 36 | U37: =IF(MOD(A37,2)=0,0,E37) -> 0 | Z37: 450 | AA37: =SUBTOTAL(9,AA2:AA36) -> 62.72573162
A38: 37 | B38: 40 | D38: 173 | E38: 16 | K38: 0.5766666667 | M38: 4 | O38: 1.028901734 | P38: 0.3 | S38: =D38*2 -> 346 | T38: 37 | U38: 16 | V38: =IF(MOD(A38,2)=0,0,S38) -> 346 | Z38: 110 | AA38: =Z38*E38/D38/4 -> 2.543352601 | AE38: =ROUND(AA38+AE36,0) -> 66
A39: 38 | B39: 40 | D39: 178 | E39: 16 | K39: 0.5933333333 | M39: 4 | O39: 1.028089888 | P39: 0.3 | T39: 38 | U39: 0 | Z39: 470
A40: 39 | B40: 40 | D40: 183 | E40: 16 | K40: 0.61 | M40: 4 | O40: 1.027322404 | P40: 0.3 | S40: =D40*2 -> 366 | T40: 39 | U40: 16 | V40: =IF(MOD(A40,2)=0,0,S40) -> 366 | Z40: 110 | AA40: =Z40*E40/D40/4 -> 2.404371585 | AE40: =ROUND(AA40+AE38,0) -> 68
A41: 40 | B41: 40 | D41: 188 | E41: 16 | K41: 0.6266666667 | M41: 4 | O41: 1.031914894 | P41: 0.3 | T41: 40 | U41: 0 | Z41: 490
A42: 41 | B42: 40 | D42: 194 | E42: 16 | K42: 0.6466666667 | M42: 4 | O42: 1.030927835 | P42: 0.3 | S42: =D42*2 -> 388 | T42: 41 | U42: 16 | V42: =IF(MOD(A42,2)=0,0,S42) -> 388 | Z42: 110 | AA42: =Z42*E42/D42/4 -> 2.268041237 | AE42: =ROUND(AA42+AE40,0) -> 70
A43: 42 | B43: 40 | D43: 200 | E43: 16 | K43: 0.6666666667 | M43: 4 | O43: 1.03 | P43: 0.3 | T43: 42 | U43: 0 | Z43: 510
A44: 43 | B44: 40 | D44: 206 | E44: 16 | K44: 0.6866666667 | M44: 4 | O44: 1.029126214 | P44: 0.3 | S44: =D44*2 -> 412 | T44: 43 | U44: 16 | V44: =IF(MOD(A44,2)=0,0,S44) -> 412 | Z44: 110 | AA44: =Z44*E44/D44/4 -> 2.13592233 | AE44: =ROUND(AA44+AE42,0) -> 72
A45: 44 | B45: 40 | D45: 212 | E45: 16 | K45: 0.7066666667 | M45: 4 | O45: 1.028301887 | P45: 0.3 | T45: 44 | U45: 0 | Z45: 530
A46: 45 | B46: 40 | D46: 218 | E46: 18 | K46: 0.7266666667 | M46: 4 | O46: 1.032110092 | P46: 0.3 | S46: =D46*2 -> 436 | T46: 45 | U46: 18 | V46: =IF(MOD(A46,2)=0,0,S46) -> 436 | Z46: 110 | AA46: =Z46*E46/D46/4 -> 2.270642202 | AE46: =ROUND(AA46+AE44,0) -> 74
A47: 46 | B47: 40 | D47: 225 | E47: 18 | K47: 0.75 | M47: 4 | O47: 1.031111111 | P47: 0.3 | T47: 46 | U47: 0 | Z47: 550
A48: 47 | B48: 40 | D48: 232 | E48: 18 | K48: 0.7733333333 | M48: 4 | O48: 1.030172414 | P48: 0.3 | S48: =D48*2 -> 464 | T48: 47 | U48: 18 | V48: =IF(MOD(A48,2)=0,0,S48) -> 464 | Z48: 110 | AA48: =Z48*E48/D48/4 -> 2.13362069 | AE48: =ROUND(AA48+AE46,0) -> 76
A49: 48 | B49: 40 | D49: 239 | E49: 18 | K49: 0.7966666667 | M49: 4 | O49: 1.029288703 | P49: 0.3 | T49: 48 | U49: 0 | Z49: 570
A50: 49 | B50: 40 | D50: 246 | E50: 18 | K50: 0.82 | M50: 4 | O50: 1.028455285 | P50: 0.3 | S50: =D50*2 -> 492 | T50: 49 | U50: 18 | V50: =IF(MOD(A50,2)=0,0,S50) -> 492 | Z50: 110 | AA50: =Z50*E50/D50/4 -> 2.012195122 | AE50: =ROUND(AA50+AE48,0) -> 78
A51: 50 | B51: 40 | D51: 253 | E51: 18 | K51: 0.8433333333 | M51: 4 | O51: 1.031620553 | P51: 0.3 | T51: 50 | U51: 0 | Z51: 590
A52: 51 | B52: 40 | D52: 261 | E52: 18 | K52: 0.87 | M52: 4 | O52: 1.030651341 | P52: 0.3 | S52: =D52*2 -> 522 | T52: 51 | U52: 18 | V52: =IF(MOD(A52,2)=0,0,S52) -> 522 | Z52: 130 | AA52: =Z52*E52/D52/4 -> 2.24137931 | AE52: =ROUND(AA52+AE50,0) -> 80
A53: 52 | B53: 40 | D53: 269 | E53: 18 | K53: 0.8966666667 | M53: 4 | O53: 1.029739777 | P53: 0.3 | T53: 52 | U53: 0 | Z53: 610
A54: 53 | B54: 40 | D54: 277 | E54: 18 | K54: 0.9233333333 | M54: 4 | O54: 1.028880866 | P54: 0.3 | S54: =D54*2 -> 554 | T54: 53 | U54: 18 | V54: =IF(MOD(A54,2)=0,0,S54) -> 554 | Z54: 130 | AA54: =Z54*E54/D54/4 -> 2.111913357 | AE54: =ROUND(AA54+AE52,0) -> 82
A55: 54 | B55: 40 | D55: 285 | E55: 18 | K55: 0.95 | M55: 4 | O55: 1.031578947 | P55: 0.3 | T55: 54 | U55: 0 | Z55: 630
A56: 55 | B56: 40 | D56: 294 | E56: 19 | K56: 0.98 | M56: 4 | O56: 1.030612245 | P56: 0.3 | S56: =D56*2 -> 588 | T56: 55 | U56: 19 | V56: =IF(MOD(A56,2)=0,0,S56) -> 588 | Z56: 130 | AA56: =Z56*E56/D56/4 -> 2.100340136 | AE56: =ROUND(AA56+AE54,0) -> 84
A57: 56 | B57: 40 | D57: 303 | E57: 19 | K57: 1.01 | M57: 4 | O57: 1.02970297 | P57: 0.3 | T57: 56 | U57: 0 | Z57: 650
A58: 57 | B58: 40 | D58: 312 | E58: 19 | K58: 1.04 | M58: 4 | O58: 1.028846154 | P58: 0.3 | S58: =D58*2 -> 624 | T58: 57 | U58: 19 | V58: =IF(MOD(A58,2)=0,0,S58) -> 624 | Z58: 130 | AA58: =Z58*E58/D58/4 -> 1.979166667 | AE58: =ROUND(AA58+AE56,0) -> 86
A59: 58 | B59: 40 | D59: 321 | E59: 19 | K59: 1.07 | M59: 4 | O59: 1.031152648 | P59: 0.3 | T59: 58 | U59: 0 | Z59: 670
A60: 59 | B60: 40 | D60: 331 | E60: 19 | K60: 1.103333333 | M60: 4 | O60: 1.03021148 | P60: 0.3 | S60: =D60*2 -> 662 | T60: 59 | U60: 19 | V60: =IF(MOD(A60,2)=0,0,S60) -> 662 | Z60: 130 | AA60: =Z60*E60/D60/4 -> 1.865558912 | AE60: =ROUND(AA60+AE58,0) -> 88
A61: 60 | B61: 40 | D61: 341 | E61: 19 | K61: 1.136666667 | M61: 4 | O61: 1.029325513 | P61: 0.3 | T61: 60 | U61: 0 | Z61: 690
A62: 61 | B62: 40 | D62: 351 | E62: 19 | K62: 1.17 | M62: 4 | O62: 1.031339031 | P62: 0.3 | S62: =D62*2 -> 702 | T62: 61 | U62: 19 | V62: =IF(MOD(A62,2)=0,0,S62) -> 702 | Z62: 130 | AA62: =Z62*E62/D62/4 -> 1.759259259 | AE62: =ROUND(AA62+AE60,0) -> 90
A63: 62 | B63: 40 | D63: 362 | E63: 19 | K63: 1.206666667 | M63: 4 | O63: 1.03038674 | P63: 0.3 | T63: 62 | U63: 0 | Z63: 710
A64: 63 | B64: 40 | D64: 373 | E64: 19 | K64: 1.243333333 | M64: 4 | O64: 1.029490617 | P64: 0.3 | S64: =D64*2 -> 746 | T64: 63 | U64: 19 | V64: =IF(MOD(A64,2)=0,0,S64) -> 746 | Z64: 130 | AA64: =Z64*E64/D64/4 -> 1.655495979 | AE64: =ROUND(AA64+AE62,0) -> 92
A65: 64 | B65: 40 | D65: 384 | E65: 19 | K65: 1.28 | M65: 4 | O65: 1.03125 | P65: 0.3 | T65: 64 | U65: 0 | Z65: 730
A66: 65 | B66: 40 | D66: 396 | E66: 21 | K66: 1.32 | M66: 4 | O66: 1.03030303 | P66: 0.3 | S66: =D66*2 -> 792 | T66: 65 | U66: 21 | V66: =IF(MOD(A66,2)=0,0,S66) -> 792 | Z66: 130 | AA66: =Z66*E66/D66/4 -> 1.723484848 | AE66: =ROUND(AA66+AE64,0) -> 94
A67: 66 | B67: 40 | D67: 408 | E67: =ROUND(D67/B67/K67*M67*(1+ROUND(A67/10,0)*$Q$2)/3,0) -> 21 | K67: 1.36 | M67: 4 | O67: 1.029411765 | P67: 0.3 | T67: 66 | U67: 0 | Z67: 750
A68: 67 | B68: 40 | D68: 420 | E68: 21 | K68: 1.4 | M68: 4 | O68: 1.030952381 | P68: 0.3 | S68: =D68*2 -> 840 | T68: 67 | U68: 21 | V68: =IF(MOD(A68,2)=0,0,S68) -> 840 | Z68: 130 | AA68: =Z68*E68/D68/4 -> 1.625 | AE68: =ROUND(AA68+AE66,0) -> 96
A69: 68 | B69: 40 | D69: 433 | E69: 21 | K69: =K68*O68 -> 1.443333333 | M69: 4 | O69: 1.030023095 | P69: 0.3 | T69: 68 | U69: =IF(MOD(A69,2)=0,0,E69) -> 0 | Z69: 770
A70: 69 | B70: 40 | D70: 446 | E70: 21 | K70: 1.486666667 | M70: 4 | O70: 1.029147982 | P70: 0.3 | S70: =D70*2 -> 892 | T70: 69 | U70: 21 | V70: =IF(MOD(A70,2)=0,0,S70) -> 892 | Z70: 130 | AA70: =Z70*E70/D70/4 -> 1.530269058 | AE70: =ROUND(AA70+AE68,0) -> 98
A71: 70 | B71: 40 | D71: 459 | E71: 21 | K71: 1.53 | M71: 4 | O71: 1.030501089 | P71: 0.3 | T71: 70 | U71: 0 | Z71: 790
A72: 71 | B72: 40 | D72: 473 | E72: 21 | K72: 1.576666667 | M72: 4 | O72: 1.029598309 | P72: 0.3 | S72: =D72*2 -> 946 | T72: 71 | U72: 21 | V72: =IF(MOD(A72,2)=0,0,S72) -> 946 | Z72: 130 | AA72: =Z72*E72/D72/4 -> 1.442917548 | AE72: =ROUND(AA72+AE70,0) -> 99
A73: 72 | B73: 40 | D73: 487 | E73: 21 | K73: 1.623333333 | M73: 4 | O73: 1.030800821 | P73: 0.3 | T73: 72 | U73: 0 | Z73: 810
A74: 73 | B74: 40 | D74: 502 | E74: 21 | K74: 1.673333333 | M74: 4 | O74: 1.029880478 | P74: 0.3 | S74: =D74*2 -> 1004 | T74: 73 | U74: 21 | V74: =IF(MOD(A74,2)=0,0,S74) -> 1004 | Z74: 130 | AA74: =Z74*E74/D74/4 -> 1.359561753 | AE74: =ROUND(AA74+AE72,0) -> 100
A75: 74 | B75: 40 | D75: 517 | E75: 21 | K75: 1.723333333 | M75: 4 | O75: 1.030947776 | P75: 0.3 | T75: 74 | U75: 0 | Z75: 830
A76: 75 | B76: 40 | D76: 533 | E76: 22 | K76: 1.776666667 | M76: 4 | O76: 1.030018762 | P76: 0.3 | S76: =D76*2 -> 1066 | T76: 75 | U76: 22 | V76: =IF(MOD(A76,2)=0,0,S76) -> 1066 | Z76: 130 | AA76: =Z76*E76/D76/4 -> 1.341463415 | AE76: =ROUND(AA76+AE74,0) -> 101
A77: 76 | B77: 40 | D77: 549 | E77: 22 | K77: 1.83 | M77: 4 | O77: 1.029143898 | P77: 0.3 | T77: 76 | U77: 0 | Z77: 850
A78: 77 | B78: 40 | D78: 565 | E78: 22 | K78: 1.883333333 | M78: 4 | O78: 1.030088496 | P78: 0.3 | S78: =D78*2 -> 1130 | T78: 77 | U78: 22 | V78: =IF(MOD(A78,2)=0,0,S78) -> 1130 | Z78: 130 | AA78: =Z78*E78/D78/4 -> 1.265486726 | AE78: =ROUND(AA78+AE76,0) -> 102
A79: 78 | B79: 40 | D79: 582 | E79: 22 | K79: 1.94 | M79: 4 | O79: 1.029209622 | P79: 0.3 | T79: 78 | U79: 0 | Z79: 870
A80: 79 | B80: 40 | D80: 599 | E80: 22 | K80: 1.996666667 | M80: 4 | O80: 1.030050083 | P80: 0.3 | S80: =D80*2 -> 1198 | T80: 79 | U80: 22 | V80: =IF(MOD(A80,2)=0,0,S80) -> 1198 | Z80: 130 | AA80: =Z80*E80/D80/4 -> 1.193656093 | AE80: =ROUND(AA80+AE78,0) -> 103
A81: 80 | B81: 40 | D81: 617 | E81: 22 | K81: 2.056666667 | M81: 4 | O81: =D82/D81 -> 1.030794165 | P81: 0.3 | T81: 80 | U81: 0 | Z81: 890
A82: 81 | B82: 40 | D82: 636 | E82: 22 | K82: 2.12 | M82: 4 | O82: 1.029874214 | P82: 0.3 | S82: =D82*2 -> 1272 | T82: 81 | U82: 22 | V82: =IF(MOD(A82,2)=0,0,S82) -> 1272 | Z82: 130 | AA82: =Z82*E82/D82/4 -> 1.124213836 | AE82: =ROUND(AA82+AE80,0) -> 104
A83: 82 | B83: 40 | D83: 655 | E83: 22 | K83: 2.183333333 | M83: 4 | O83: 1.030534351 | P83: 0.3 | T83: 82 | U83: 0 | Z83: 910
A84: 83 | B84: 40 | D84: 675 | E84: 22 | K84: 2.25 | M84: 4 | O84: 1.02962963 | P84: 0.3 | S84: =D84*2 -> 1350 | T84: 83 | U84: 22 | V84: =IF(MOD(A84,2)=0,0,S84) -> 1350 | Z84: 150 | AA84: =Z84*E84/D84/4 -> 1.222222222 | AE84: =ROUND(AA84+AE82,0) -> 105
A85: 84 | B85: 40 | D85: 695 | E85: 22 | K85: 2.316666667 | M85: 4 | O85: 1.030215827 | P85: 0.3 | T85: 84 | U85: 0 | Z85: 930
A86: 85 | B86: 40 | D86: 716 | E86: 23 | K86: 2.386666667 | M86: 4 | O86: 1.029329609 | P86: 0.3 | S86: =D86*2 -> 1432 | T86: 85 | U86: 23 | V86: =IF(MOD(A86,2)=0,0,S86) -> 1432 | Z86: 150 | AA86: =Z86*E86/D86/4 -> 1.204608939 | AE86: =ROUND(AA86+AE84,0) -> 106
A87: 86 | B87: 40 | D87: 737 | E87: 23 | K87: 2.456666667 | M87: 4 | O87: 1.029850746 | P87: 0.3 | T87: 86 | U87: 0 | Z87: 950
A88: 87 | B88: 40 | D88: 759 | E88: 23 | K88: 2.53 | M88: 4 | O88: 1.03030303 | P88: 0.3 | S88: =D88*2 -> 1518 | T88: 87 | U88: 23 | V88: =IF(MOD(A88,2)=0,0,S88) -> 1518 | Z88: 150 | AA88: =Z88*E88/D88/4 -> 1.136363636 | AE88: =ROUND(AA88+AE86,0) -> 107
A89: 88 | B89: 40 | D89: 782 | E89: 23 | K89: 2.606666667 | M89: 4 | O89: 1.029411765 | P89: 0.3 | T89: 88 | U89: 0 | Z89: 970
A90: 89 | B90: 40 | D90: 805 | E90: 23 | K90: 2.683333333 | M90: 4 | O90: 1.029813665 | P90: 0.3 | S90: =D90*2 -> 1610 | T90: 89 | U90: 23 | V90: =IF(MOD(A90,2)=0,0,S90) -> 1610 | Z90: 150 | AA90: =Z90*E90/D90/4 -> 1.071428571 | AE90: =ROUND(AA90+AE88,0) -> 108
A91: 90 | B91: 40 | D91: 829 | E91: 23 | K91: 2.763333333 | M91: 4 | O91: 1.030156815 | P91: 0.3 | T91: 90 | U91: 0 | Z91: 990
A92: 91 | B92: 40 | D92: 854 | E92: 23 | K92: 2.846666667 | M92: 4 | O92: 1.030444965 | P92: 0.3 | S92: =D92*2 -> 1708 | T92: 91 | U92: 23 | V92: =IF(MOD(A92,2)=0,0,S92) -> 1708 | Z92: 150 | AA92: =Z92*E92/D92/4 -> 1.009953162 | AE92: =ROUND(AA92+AE90,0) -> 109
A93: 92 | B93: 40 | D93: 880 | E93: 23 | K93: 2.933333333 | M93: 4 | O93: 1.029545455 | P93: 0.3 | T93: 92 | U93: 0 | Z93: 1010
A94: 93 | B94: 40 | D94: 906 | E94: 24 | K94: 3.02 | M94: 4 | O94: 1.029801325 | P94: 0.3 | S94: =D94*2 -> 1812 | T94: 93 | U94: 24 | V94: =IF(MOD(A94,2)=0,0,S94) -> 1812 | Z94: 150 | AA94: =Z94*E94/D94/4 -> 0.9933774834 | AE94: =ROUND(AA94+AE92,0) -> 110
A95: 94 | B95: 40 | D95: 933 | E95: 24 | K95: 3.11 | M95: 4 | O95: 1.030010718 | P95: 0.3 | T95: 94 | U95: 0 | Z95: 1030
A96: 95 | B96: 40 | D96: 961 | E96: 25 | K96: 3.203333333 | M96: 4 | O96: 1.030176899 | P96: 0.3 | S96: =D96*2 -> 1922 | T96: 95 | U96: 25 | V96: =IF(MOD(A96,2)=0,0,S96) -> 1922 | Z96: 150 | AA96: =Z96*E96/D96/4 -> 0.9755463059 | AE96: =ROUND(AA96+AE94,0) -> 111
A97: 96 | B97: 40 | D97: 990 | E97: 25 | K97: 3.3 | M97: 4 | O97: 1.03030303 | P97: 0.3 | T97: 96 | U97: 0 | Z97: 1050
A98: 97 | B98: 40 | D98: 1020 | E98: 25 | K98: 3.4 | M98: 4 | O98: 1.030392157 | P98: 0.3 | S98: =D98*2 -> 2040 | T98: 97 | U98: 25 | V98: =IF(MOD(A98,2)=0,0,S98) -> 2040 | Z98: 150 | AA98: =Z98*E98/D98/4 -> 0.9191176471 | AE98: =ROUND(AA98+AE96,0) -> 112
A99: 98 | B99: 40 | D99: 1051 | E99: 25 | K99: 3.503333333 | M99: 4 | O99: 1.030447193 | P99: 0.3 | T99: 98 | U99: 0 | Z99: 1070
A100: 99 | B100: 40 | D100: 1083 | E100: 25 | K100: 3.61 | M100: 4 | O100: 1.029547553 | P100: 0.3 | S100: =D100*2 -> 2166 | T100: 99 | U100: 25 | V100: =IF(MOD(A100,2)=0,0,S100) -> 2166 | Z100: 150 | AA100: =Z100*E100/D100/4 -> 0.8656509695 | AE100: =ROUND(AA100+AE98,0) -> 113
A101: 100 | B101: 40 | D101: 1115 | E101: 25 | K101: 3.716666667 | M101: 4 | O101: 1.029596413 | P101: 0.3 | T101: 100 | U101: =IF(MOD(A101,2)=0,0,E101) -> 0 | Z101: 1090
A102: 101 | B102: 40 | D102: 1148 | E102: 25 | K102: 3.826666667 | M102: 4 | O102: 1.029616725 | P102: 0.3 | S102: =D102*2 -> 2296 | T102: 101 | U102: 25 | V102: =IF(MOD(A102,2)=0,0,S102) -> 2296 | Z102: 150 | AA102: =Z102*E102/D102/4 -> 0.8166376307 | AE102: =ROUND(AA102+AE100,0) -> 114
A103: 102 | B103: 40 | D103: 1182 | E103: 25 | K103: 3.94 | M103: 4 | O103: 1.029610829 | P103: 0.3 | T103: 102 | U103: 0 | Z103: 1110
A104: 103 | B104: 40 | D104: 1217 | E104: 25 | K104: 4.056666667 | M104: 4 | O104: 1.030402629 | P104: 0.3 | S104: =D104*2 -> 2434 | T104: 103 | U104: 25 | V104: =IF(MOD(A104,2)=0,0,S104) -> 2434 | Z104: 150 | AA104: =Z104*E104/D104/4 -> 0.770336894 | AE104: =ROUND(AA104+AE102,0) -> 115
A105: 104 | B105: 40 | D105: 1254 | E105: 25 | K105: 4.18 | M105: 4 | O105: 1.03030303 | P105: 0.3 | T105: 104 | U105: 0 | Z105: 1130
A106: 105 | B106: 40 | D106: 1292 | E106: 27 | K106: 4.306666667 | M106: 4 | O106: 1.030185759 | P106: 0.3 | S106: =D106*2 -> 2584 | T106: 105 | U106: 27 | V106: =IF(MOD(A106,2)=0,0,S106) -> 2584 | Z106: 150 | AA106: =Z106*E106/D106/4 -> 0.7836687307 | AE106: =ROUND(AA106+AE104,0) -> 116
A107: 106 | B107: 40 | D107: 1331 | E107: 27 | K107: 4.436666667 | M107: 4 | O107: 1.030052592 | P107: 0.3 | T107: 106 | U107: 0 | Z107: 1150
A108: 107 | B108: 40 | D108: 1371 | E108: 27 | K108: 4.57 | M108: 4 | O108: 1.029905179 | P108: 0.3 | S108: =D108*2 -> 2742 | T108: 107 | U108: 27 | V108: =IF(MOD(A108,2)=0,0,S108) -> 2742 | Z108: 150 | AA108: =Z108*E108/D108/4 -> 0.738512035 | AE108: =ROUND(AA108+AE106,0) -> 117
A109: 108 | B109: 40 | D109: 1412 | E109: 27 | K109: 4.706666667 | M109: 4 | O109: 1.029745042 | P109: 0.3 | T109: 108 | U109: 0 | Z109: 1170
A110: 109 | B110: 40 | D110: 1454 | E110: 27 | K110: 4.846666667 | M110: 4 | O110: 1.030261348 | P110: 0.3 | S110: =D110*2 -> 2908 | T110: 109 | U110: 27 | V110: =IF(MOD(A110,2)=0,0,S110) -> 2908 | Z110: 150 | AA110: =Z110*E110/D110/4 -> 0.6963548831 | AE110: =ROUND(AA110+AE108,0) -> 118
A111: 110 | B111: 40 | D111: 1498 | E111: 27 | K111: 4.993333333 | M111: 4 | O111: 1.030040053 | P111: 0.3 | T111: 110 | U111: 0 | Z111: 1190
A112: 111 | B112: 40 | D112: 1543 | E112: 27 | K112: 5.143333333 | M112: 4 | O112: 1.029812054 | P112: 0.3 | S112: =D112*2 -> 3086 | T112: 111 | U112: 27 | V112: =IF(MOD(A112,2)=0,0,S112) -> 3086 | Z112: 150 | AA112: =Z112*E112/D112/4 -> 0.6561892417 | AE112: =ROUND(AA112+AE110,0) -> 119
A113: 112 | B113: 40 | D113: 1589 | E113: 27 | K113: 5.296666667 | M113: 4 | O113: 1.030207678 | P113: 0.3 | T113: 112 | U113: 0 | Z113: 1210
A114: 113 | B114: 40 | D114: 1637 | E114: 27 | K114: 5.456666667 | M114: 4 | O114: 1.029932804 | P114: 0.3 | S114: =D114*2 -> 3274 | T114: 113 | U114: 27 | V114: =IF(MOD(A114,2)=0,0,S114) -> 3274 | Z114: 150 | AA114: =Z114*E114/D114/4 -> 0.6185094685 | AE114: =ROUND(AA114+AE112,0) -> 120
A115: 114 | B115: 40 | D115: 1686 | E115: 27 | K115: 5.62 | M115: 4 | O115: 1.03024911 | P115: 0.3 | T115: 114 | U115: 0 | Z115: 1230
A116: 115 | B116: 40 | D116: 1737 | E116: 28 | K116: 5.79 | M116: 4 | O116: 1.029936672 | P116: 0.3 | S116: =D116*2 -> 3474 | T116: 115 | U116: 28 | V116: =IF(MOD(A116,2)=0,0,S116) -> 3474 | Z116: 150 | AA116: =Z116*E116/D116/4 -> 0.6044905009 | AE116: =ROUND(AA116+AE114,0) -> 121
A117: 116 | B117: 40 | D117: 1789 | E117: 28 | K117: 5.963333333 | M117: 4 | O117: 1.030184461 | P117: 0.3 | T117: 116 | U117: 0 | Z117: 1250
A118: 117 | B118: 40 | D118: 1843 | E118: 28 | K118: 6.143333333 | M118: 4 | O118: 1.029842648 | P118: 0.3 | S118: =D118*2 -> 3686 | T118: 117 | U118: 28 | V118: =IF(MOD(A118,2)=0,0,S118) -> 3686 | Z118: 150 | AA118: =Z118*E118/D118/4 -> 0.5697232773 | AE118: =ROUND(AA118+AE116,0) -> 122
A119: 118 | B119: 40 | D119: 1898 | E119: 28 | K119: 6.326666667 | M119: 4 | O119: 1.030031612 | P119: 0.3 | T119: 118 | U119: 0 | Z119: 1270
A120: 119 | B120: 40 | D120: 1955 | E120: 28 | K120: 6.516666667 | M120: 4 | O120: 1.030179028 | P120: 0.3 | S120: =D120*2 -> 3910 | T120: 119 | U120: 28 | V120: =IF(MOD(A120,2)=0,0,S120) -> 3910 | Z120: 150 | AA120: =Z120*E120/D120/4 -> 0.537084399 | AE120: =ROUND(AA120+AE118,0) -> 123
A121: 120 | B121: 40 | D121: 2014 | E121: 28 | K121: 6.713333333 | M121: 4 | O121: 1.02979146 | P121: 0.3 | T121: 120 | U121: 0 | Z121: 1290
A122: 121 | B122: 40 | D122: 2074 | E122: 28 | K122: 6.913333333 | M122: 4 | O122: 1.029893925 | P122: 0.3 | S122: =D122*2 -> 4148 | T122: 121 | U122: 28 | V122: =IF(MOD(A122,2)=0,0,S122) -> 4148 | Z122: 150 | AA122: =Z122*E122/D122/4 -> 0.506268081 | AE122: =ROUND(AA122+AE120,0) -> 124
A123: 122 | B123: 40 | D123: 2136 | E123: 28 | K123: 7.12 | M123: 4 | O123: 1.029962547 | P123: 0.3 | T123: 122 | U123: 0 | Z123: 1310
A124: 123 | B124: 40 | D124: 2200 | E124: 28 | K124: 7.333333333 | M124: 4 | O124: 1.03 | P124: 0.3 | S124: =D124*2 -> 4400 | T124: 123 | U124: 28 | V124: =IF(MOD(A124,2)=0,0,S124) -> 4400 | Z124: 150 | AA124: =Z124*E124/D124/4 -> 0.4772727273 | AE124: =ROUND(AA124+AE122,0) -> 124
A125: 124 | B125: 40 | D125: 2266 | E125: 28 | K125: 7.553333333 | M125: 4 | O125: 1.030008826 | P125: 0.3 | T125: 124 | U125: 0 | Z125: 1330
A126: 125 | B126: 40 | D126: 2334 | E126: 30 | K126: 7.78 | M126: 4 | O126: 1.029991431 | P126: 0.3 | S126: =D126*2 -> 4668 | T126: 125 | U126: 30 | V126: =IF(MOD(A126,2)=0,0,S126) -> 4668 | Z126: 150 | AA126: =Z126*E126/D126/4 -> 0.4820051414 | AE126: =ROUND(AA126+AE124,0) -> 124
A127: 126 | B127: 40 | D127: 2404 | E127: 30 | K127: 8.013333333 | M127: 4 | O127: 1.029950083 | P127: 0.3 | T127: 126 | U127: 0 | Z127: 1350
A128: 127 | B128: 40 | D128: 2476 | E128: 30 | K128: 8.253333333 | M128: 4 | O128: 1.029886914 | P128: 0.3 | S128: =D128*2 -> 4952 | T128: 127 | U128: 30 | V128: =IF(MOD(A128,2)=0,0,S128) -> 4952 | Z128: 150 | AA128: =Z128*E128/D128/4 -> 0.454361874 | AE128: =ROUND(AA128+AE126,0) -> 124
A129: 128 | B129: 40 | D129: 2550 | E129: 30 | K129: 8.5 | M129: 4 | O129: 1.030196078 | P129: 0.3 | T129: 128 | U129: 0 | Z129: 1370
A130: 129 | B130: 40 | D130: 2627 | E130: 30 | K130: 8.756666667 | M130: 4 | O130: 1.030072326 | P130: 0.3 | S130: =D130*2 -> 5254 | T130: 129 | U130: 30 | V130: =IF(MOD(A130,2)=0,0,S130) -> 5254 | Z130: 200 | AA130: =Z130*E130/D130/4 -> 0.5709935287 | AE130: =ROUND(AA130+AE128,0) -> 125
A131: 130 | B131: 40 | D131: 2706 | E131: =ROUND(D131/B131/K131*M131*(1+ROUND(A131/10,0)*$Q$2)/3,0) -> 30 | K131: 9.02 | M131: 4 | O131: 1.029933481 | P131: 0.3 | T131: 130 | U131: 0 | Z131: 1390
A132: 131 | B132: 40 | D132: 2787 | E132: 30 | K132: 9.29 | M132: 4 | O132: 1.030139935 | P132: 0.3 | S132: =D132*2 -> 5574 | T132: 131 | U132: 30 | V132: =IF(MOD(A132,2)=0,0,S132) -> 5574 | Z132: 200 | AA132: =Z132*E132/D132/4 -> 0.5382131324 | AE132: =ROUND(AA132+AE130,0) -> 126
A133: 132 | B133: 40 | D133: 2871 | E133: 30 | K133: =K132*O132 -> 9.57 | M133: 4 | O133: 1.02995472 | P133: 0.3 | T133: 132 | U133: =IF(MOD(A133,2)=0,0,E133) -> 0 | Z133: 1410
A134: 133 | B134: 40 | D134: 2957 | E134: 30 | K134: 9.856666667 | M134: 4 | O134: 1.030098072 | P134: 0.3 | S134: =D134*2 -> 5914 | T134: 133 | U134: 30 | V134: =IF(MOD(A134,2)=0,0,S134) -> 5914 | Z134: 200 | AA134: =Z134*E134/D134/4 -> 0.5072708827 | AE134: =ROUND(AA134+AE132,0) -> 127
A135: 134 | B135: 40 | D135: 3046 | E135: 30 | K135: 10.15333333 | M135: 4 | O135: 1.029875246 | P135: 0.3 | T135: 134 | U135: 0 | Z135: 1430
A136: 135 | B136: 40 | D136: 3137 | E136: 31 | K136: 10.45666667 | M136: 4 | O136: 1.029964935 | P136: 0.3 | S136: =D136*2 -> 6274 | T136: 135 | U136: 31 | V136: =IF(MOD(A136,2)=0,0,S136) -> 6274 | Z136: 200 | AA136: =Z136*E136/D136/4 -> 0.4941026458 | AE136: =ROUND(AA136+AE134,0) -> 127
A137: 136 | B137: 40 | D137: 3231 | E137: 31 | K137: 10.77 | M137: 4 | O137: 1.030021665 | P137: 0.3 | T137: 136 | U137: 0 | Z137: 1450
A138: 137 | B138: 40 | D138: 3328 | E138: 31 | K138: 11.09333333 | M138: 4 | O138: 1.030048077 | P138: 0.3 | S138: =D138*2 -> 6656 | T138: 137 | U138: 31 | V138: =IF(MOD(A138,2)=0,0,S138) -> 6656 | Z138: 200 | AA138: =Z138*E138/D138/4 -> 0.4657451923 | AE138: =ROUND(AA138+AE136,0) -> 127
A139: 138 | B139: 40 | D139: 3428 | E139: 31 | K139: 11.42666667 | M139: 4 | O139: 1.030046674 | P139: 0.3 | T139: 138 | U139: 0 | Z139: 1470
A140: 139 | B140: 40 | D140: 3531 | E140: 31 | K140: 11.77 | M140: 4 | O140: 1.030019824 | P140: 0.3 | S140: =D140*2 -> 7062 | T140: 139 | U140: 31 | V140: =IF(MOD(A140,2)=0,0,S140) -> 7062 | Z140: 200 | AA140: =Z140*E140/D140/4 -> 0.4389691306 | AE140: =ROUND(AA140+AE138,0) -> 127
A141: 140 | B141: 40 | D141: 3637 | E141: 31 | K141: 12.12333333 | M141: 4 | O141: 1.029969755 | P141: 0.3 | T141: 140 | U141: 0 | Z141: 1490
A142: 141 | B142: 40 | D142: 3746 | E142: 31 | K142: 12.48666667 | M142: 4 | O142: 1.029898558 | P142: 0.3 | S142: =D142*2 -> 7492 | T142: 141 | U142: 31 | V142: =IF(MOD(A142,2)=0,0,S142) -> 7492 | Z142: 200 | AA142: =Z142*E142/D142/4 -> 0.413774693 | AE142: =ROUND(AA142+AE140,0) -> 127
A143: 142 | B143: 40 | D143: 3858 | E143: 31 | K143: 12.86 | M143: 4 | O143: 1.030067392 | P143: 0.3 | T143: 142 | U143: 0 | Z143: 1510
A144: 143 | B144: 40 | D144: 3974 | E144: 31 | K144: 13.24666667 | M144: 4 | O144: 1.02994464 | P144: 0.3 | S144: =D144*2 -> 7948 | T144: 143 | U144: 31 | V144: =IF(MOD(A144,2)=0,0,S144) -> 7948 | Z144: 200 | AA144: =Z144*E144/D144/4 -> 0.390035229 | AE144: =ROUND(AA144+AE142,0) -> 127
A145: 144 | B145: 40 | D145: 4093 | E145: 31 | K145: 13.64333333 | M145: 4 | O145: =D146/D145 -> 1.030051307 | P145: 0.3 | T145: 144 | U145: 0 | Z145: 1530
A146: 145 | B146: 40 | D146: 4216 | E146: 33 | K146: 14.05333333 | M146: 4 | O146: 1.029886148 | P146: 0.3 | S146: =D146*2 -> 8432 | T146: 145 | U146: 33 | V146: =IF(MOD(A146,2)=0,0,S146) -> 8432 | Z146: 200 | AA146: =Z146*E146/D146/4 -> 0.3913662239 | AE146: =ROUND(AA146+AE144,0) -> 127
A147: 146 | B147: 40 | D147: 4342 | E147: 33 | K147: 14.47333333 | M147: 4 | O147: 1.02994012 | P147: 0.3 | T147: 146 | U147: 0 | Z147: 1550
A148: 147 | B148: 40 | D148: 4472 | E148: 33 | K148: 14.90666667 | M148: 4 | O148: 1.029964222 | P148: 0.3 | S148: =D148*2 -> 8944 | T148: 147 | U148: 33 | V148: =IF(MOD(A148,2)=0,0,S148) -> 8944 | Z148: 200 | AA148: =Z148*E148/D148/4 -> 0.3689624329 | AE148: =ROUND(AA148+AE146,0) -> 127
A149: 148 | B149: 40 | D149: 4606 | E149: 33 | K149: 15.35333333 | M149: 4 | O149: 1.029960921 | P149: 0.3 | T149: 148 | U149: 0 | Z149: 1570
A150: 149 | B150: 40 | D150: 4744 | E150: 33 | K150: 15.81333333 | M150: 4 | O150: 1.029932546 | P150: 0.3 | S150: =D150*2 -> 9488 | T150: 149 | U150: 33 | V150: =IF(MOD(A150,2)=0,0,S150) -> 9488 | Z150: 200 | AA150: =Z150*E150/D150/4 -> 0.3478077572 | AE150: =ROUND(AA150+AE148,0) -> 127
A151: 150 | B151: 40 | D151: 4886 | E151: 33 | K151: 16.28666667 | M151: 4 | O151: 1.03008596 | P151: 0.3 | T151: 150 | U151: 0 | Z151: 1590
A152: 151 | B152: 40 | D152: 5033 | E152: 33 | K152: 16.77666667 | M152: 4 | O152: 1.030001987 | P152: 0.3 | S152: =D152*2 -> 10066 | T152: 151 | U152: =IF(MOD(A152,2)=0,0,E152) -> 33 | V152: =IF(MOD(A152,2)=0,0,S152) -> 10066 | Z152: 200 | AA152: =Z152*E152/D152/4 -> 0.3278362805 | AE152: =ROUND(AA152+AE150,0) -> 127
A153: 152 | B153: 40 | D153: 5184 | E153: 33 | K153: 17.28 | M153: 4 | O153: 1.030092593 | P153: 0.3 | T153: 152 | U153: 0
A154: 153 | B154: 40 | D154: 5340 | E154: 33 | K154: 17.8 | M154: 4 | O154: 1.029962547 | P154: 0.3 | S154: =D154*2 -> 10680 | T154: 153 | U154: 33 | V154: =IF(MOD(A154,2)=0,0,S154) -> 10680 | Z154: 200 | AA154: =Z154*E154/D154/4 -> 0.308988764 | AE154: =ROUND(AA154+AE152,0) -> 127
A155: 154 | B155: 40 | D155: 5500 | E155: 33 | K155: 18.33333333 | M155: 4 | O155: 1.03 | P155: 0.3 | T155: 154 | U155: 0
A156: 155 | B156: 40 | D156: 5665 | E156: 34 | K156: 18.88333333 | M156: 4 | O156: 1.030008826 | P156: 0.3 | S156: =D156*2 -> 11330 | T156: 155 | U156: 34 | V156: =IF(MOD(A156,2)=0,0,S156) -> 11330 | Z156: 200 | AA156: =Z156*E156/D156/4 -> 0.3000882613 | AE156: =ROUND(AA156+AE154,0) -> 127
A157: 156 | B157: 40 | D157: 5835 | E157: 34 | K157: 19.45 | M157: 4 | O157: 1.029991431 | P157: 0.3 | T157: 156 | U157: 0
A158: 157 | B158: 40 | D158: 6010 | E158: 34 | K158: 20.03333333 | M158: 4 | O158: 1.029950083 | P158: 0.3 | S158: =D158*2 -> 12020 | T158: 157 | U158: 34 | V158: =IF(MOD(A158,2)=0,0,S158) -> 12020 | Z158: 200 | AA158: =Z158*E158/D158/4 -> 0.2828618968 | AE158: =ROUND(AA158+AE156,0) -> 127
A159: 158 | B159: 40 | D159: 6190 | E159: 34 | K159: 20.63333333 | M159: 4 | O159: 1.030048465 | P159: 0.3 | T159: 158 | U159: 0
A160: 159 | B160: 40 | D160: 6376 | E160: 34 | K160: 21.25333333 | M160: 4 | O160: 1.029956085 | P160: 0.3 | S160: =D160*2 -> 12752 | T160: 159 | U160: 34 | V160: =IF(MOD(A160,2)=0,0,S160) -> 12752 | Z160: 200 | AA160: =Z160*E160/D160/4 -> 0.2666248432 | AE160: =ROUND(AA160+AE158,0) -> 127
A161: 160 | B161: 40 | D161: 6567 | E161: 34 | K161: 21.89 | M161: 4 | O161: 1.029998477 | P161: 0.3 | T161: 160 | U161: 0
A162: 161 | B162: 40 | D162: 6764 | E162: 34 | K162: 22.54666667 | M162: 4 | O162: 1.030011827 | P162: 0.3 | S162: =D162*2 -> 13528 | T162: 161 | U162: 34 | V162: =IF(MOD(A162,2)=0,0,S162) -> 13528 | Z162: 200 | AA162: =Z162*E162/D162/4 -> 0.2513305736 | AE162: =ROUND(AA162+AE160,0) -> 127
A163: 162 | B163: 40 | D163: 6967 | E163: 34 | K163: 23.22333333 | M163: 4 | O163: 1.029998565 | P163: 0.3 | T163: 162 | U163: 0
A164: 163 | B164: 40 | D164: 7176 | E164: 34 | K164: 23.92 | M164: 4 | O164: 1.029960981 | P164: 0.3 | S164: =D164*2 -> 14352 | T164: 163 | U164: 34 | V164: =IF(MOD(A164,2)=0,0,S164) -> 14352 | Z164: 200 | AA164: =Z164*E164/D164/4 -> 0.2369007804 | AE164: =ROUND(AA164+AE162,0) -> 127
A165: 164 | B165: 40 | D165: 7391 | E165: 34 | K165: 24.63666667 | M165: 4 | O165: 1.030036531 | P165: 0.3 | T165: 164 | U165: 0
A166: 165 | B166: 40 | D166: 7613 | E166: 35 | K166: 25.37666667 | M166: 4 | O166: 1.029948772 | P166: 0.3 | S166: =D166*2 -> 15226 | T166: 165 | U166: 35 | V166: =IF(MOD(A166,2)=0,0,S166) -> 15226 | Z166: 200 | AA166: =Z166*E166/D166/4 -> 0.2298699593 | AE166: =ROUND(AA166+AE164,0) -> 127
A167: 166 | B167: 40 | D167: 7841 | E167: 35 | K167: 26.13666667 | M167: 4 | O167: 1.029970667 | P167: 0.3 | T167: 166 | U167: 0
A168: 167 | B168: 40 | D168: 8076 | E168: 35 | K168: 26.92 | M168: 4 | O168: 1.029965329 | P168: 0.3 | S168: =D168*2 -> 16152 | T168: 167 | U168: 35 | V168: =IF(MOD(A168,2)=0,0,S168) -> 16152 | Z168: 200 | AA168: =Z168*E168/D168/4 -> 0.2166914314 | AE168: =ROUND(AA168+AE166,0) -> 127
A169: 168 | B169: 40 | D169: 8318 | E169: 35 | K169: 27.72666667 | M169: 4 | O169: 1.030055302 | P169: 0.3 | T169: 168 | U169: 0
A170: 169 | B170: 40 | D170: 8568 | E170: 35 | K170: 28.56 | M170: 4 | O170: 1.029995331 | P170: 0.3 | S170: =D170*2 -> 17136 | T170: 169 | U170: 35 | V170: =IF(MOD(A170,2)=0,0,S170) -> 17136 | Z170: 200 | AA170: =Z170*E170/D170/4 -> 0.204248366 | AE170: =ROUND(AA170+AE168,0) -> 127
A171: 170 | B171: 40 | D171: 8825 | E171: 35 | K171: 29.41666667 | M171: 4 | O171: 1.030028329 | P171: 0.3 | T171: 170 | U171: 0
A172: 171 | B172: 40 | D172: 9090 | E172: 35 | K172: 30.3 | M172: 4 | O172: 1.030033003 | P172: 0.3 | S172: =D172*2 -> 18180 | T172: 171 | U172: 35 | V172: =IF(MOD(A172,2)=0,0,S172) -> 18180 | Z172: 200 | AA172: =Z172*E172/D172/4 -> 0.1925192519 | AE172: =ROUND(AA172+AE170,0) -> 127
A173: 172 | B173: 40 | D173: 9363 | E173: 35 | K173: 31.21 | M173: 4 | O173: 1.030011748 | P173: 0.3 | T173: 172 | U173: 0
A174: 173 | B174: 40 | D174: 9644 | E174: 35 | K174: 32.14666667 | M174: 4 | O174: 1.029966819 | P174: 0.3 | S174: =D174*2 -> 19288 | T174: 173 | U174: 35 | V174: =IF(MOD(A174,2)=0,0,S174) -> 19288 | Z174: 200 | AA174: =Z174*E174/D174/4 -> 0.1814599751 | AE174: =ROUND(AA174+AE172,0) -> 127
A175: 174 | B175: 40 | D175: 9933 | E175: 35 | K175: 33.11 | M175: 4 | O175: 1.030001007 | P175: 0.3 | T175: 174 | U175: 0
A176: 175 | B176: 40 | D176: 10231 | E176: 37 | K176: 34.10333333 | M176: 4 | O176: 1.030006842 | P176: 0.3 | S176: =D176*2 -> 20462 | T176: 175 | U176: 37 | V176: =IF(MOD(A176,2)=0,0,S176) -> 20462 | Z176: 200 | AA176: =Z176*E176/D176/4 -> 0.180822989 | AE176: =ROUND(AA176+AE174,0) -> 127
A177: 176 | B177: 40 | D177: 10538 | E177: 37 | K177: 35.12666667 | M177: 4 | O177: 1.029986715 | P177: 0.3 | T177: 176 | U177: 0
A178: 177 | B178: 40 | D178: 10854 | E178: 37 | K178: 36.18 | M178: 4 | O178: 1.03003501 | P178: 0.3 | S178: =D178*2 -> 21708 | T178: 177 | U178: 37 | V178: =IF(MOD(A178,2)=0,0,S178) -> 21708 | Z178: 200 | AA178: =Z178*E178/D178/4 -> 0.1704440759 | AE178: =ROUND(AA178+AE176,0) -> 127
A179: 178 | B179: 40 | D179: 11180 | E179: 37 | K179: 37.26666667 | M179: 4 | O179: 1.029964222 | P179: 0.3 | T179: 178 | U179: 0
A180: 179 | B180: 40 | D180: 11515 | E180: 37 | K180: 38.38333333 | M180: 4 | O180: 1.029960921 | P180: 0.3 | S180: =D180*2 -> 23030 | T180: 179 | U180: 37 | V180: =IF(MOD(A180,2)=0,0,S180) -> 23030 | Z180: 200 | AA180: =Z180*E180/D180/4 -> 0.1606600087 | AE180: =ROUND(AA180+AE178,0) -> 127
A181: 180 | B181: 40 | D181: 11860 | E181: 37 | K181: 39.53333333 | M181: 4 | O181: 1.030016863 | P181: 0.3 | T181: 180 | U181: 0
A182: 181 | B182: 40 | D182: 12216 | E182: 37 | K182: 40.72 | M182: 4 | O182: 1.029960707 | P182: 0.3 | S182: =D182*2 -> 24432 | T182: 181 | U182: 37 | V182: =IF(MOD(A182,2)=0,0,S182) -> 24432 | Z182: 200 | AA182: =Z182*E182/D182/4 -> 0.1514407335 | AE182: =ROUND(AA182+AE180,0) -> 127
A183: 182 | B183: 40 | D183: 12582 | E183: 37 | K183: 41.94 | M183: 4 | O183: 1.02996344 | P183: 0.3 | T183: 182 | U183: 0
A184: 183 | B184: 40 | D184: 12959 | E184: 37 | K184: 43.19666667 | M184: 4 | O184: 1.030017748 | P184: 0.3 | S184: =D184*2 -> 25918 | T184: 183 | U184: =IF(MOD(A184,2)=0,0,E184) -> 37 | V184: =IF(MOD(A184,2)=0,0,S184) -> 25918 | Z184: 200 | AA184: =Z184*E184/D184/4 -> 0.1427579289 | AE184: =ROUND(AA184+AE182,0) -> 127
A185: 184 | B185: 40 | D185: 13348 | E185: 37 | K185: 44.49333333 | M185: 4 | O185: 1.029967036 | P185: 0.3 | T185: 184 | U185: 0
A186: 185 | B186: 40 | D186: 13748 | E186: 38 | K186: 45.82666667 | M186: 4 | O186: 1.029967995 | P186: 0.3 | S186: =D186*2 -> 27496 | T186: 185 | U186: 38 | V186: =IF(MOD(A186,2)=0,0,S186) -> 27496 | Z186: 200 | AA186: =Z186*E186/D186/4 -> 0.1382019203 | AE186: =ROUND(AA186+AE184,0) -> 127
A187: 186 | B187: 40 | D187: 14160 | E187: 38 | K187: 47.2 | M187: 4 | O187: 1.030014124 | P187: 0.3 | T187: 186 | U187: 0
A188: 187 | B188: 40 | D188: 14585 | E188: 38 | K188: 48.61666667 | M188: 4 | O188: 1.030030854 | P188: 0.3 | S188: =D188*2 -> 29170 | T188: 187 | U188: 38 | V188: =IF(MOD(A188,2)=0,0,S188) -> 29170 | Z188: 200 | AA188: =Z188*E188/D188/4 -> 0.1302708262 | AE188: =ROUND(AA188+AE186,0) -> 127
A189: 188 | B189: 40 | D189: 15023 | E189: 38 | K189: 50.07666667 | M189: 4 | O189: 1.030020635 | P189: 0.3 | T189: 188 | U189: 0
A190: 189 | B190: 40 | D190: 15474 | E190: 38 | K190: 51.58 | M190: 4 | O190: 1.029985783 | P190: 0.3 | S190: =D190*2 -> 30948 | T190: 189 | U190: 38 | V190: =IF(MOD(A190,2)=0,0,S190) -> 30948 | Z190: 200 | AA190: =Z190*E190/D190/4 -> 0.1227866098 | AE190: =ROUND(AA190+AE188,0) -> 127
A191: 190 | B191: 40 | D191: 15938 | E191: 38 | K191: 53.12666667 | M191: 4 | O191: 1.029991216 | P191: 0.3 | T191: 190 | U191: 0
A192: 191 | B192: 40 | D192: 16416 | E192: 38 | K192: 54.72 | M192: 4 | O192: 1.02997076 | P192: 0.3 | S192: =D192*2 -> 32832 | T192: 191 | U192: 38 | V192: =IF(MOD(A192,2)=0,0,S192) -> 32832 | Z192: 200 | AA192: =Z192*E192/D192/4 -> 0.1157407407 | AE192: =ROUND(AA192+AE190,0) -> 127
A193: 192 | B193: 40 | D193: 16908 | E193: 38 | K193: 56.36 | M193: 4 | O193: 1.029985806 | P193: 0.3 | T193: 192 | U193: 0
A194: 193 | B194: 40 | D194: 17415 | E194: 38 | K194: 58.05 | M194: 4 | O194: 1.02997416 | P194: 0.3 | S194: =D194*2 -> 34830 | T194: 193 | U194: 38 | V194: =IF(MOD(A194,2)=0,0,S194) -> 34830 | Z194: 200 | AA194: =Z194*E194/D194/4 -> 0.1091013494 | AE194: =ROUND(AA194+AE192,0) -> 127
A195: 194 | B195: 40 | D195: 17937 | E195: =ROUND(D195/B195/K195*M195*(1+ROUND(A195/10,0)*$Q$2)/3,0) -> 38 | K195: 59.79 | M195: 4 | O195: 1.029993867 | P195: 0.3 | T195: 194 | U195: 0
A196: 195 | B196: 40 | D196: 18475 | E196: 40 | K196: 61.58333333 | M196: 4 | O196: 1.029986468 | P196: 0.3 | S196: =D196*2 -> 36950 | T196: 195 | U196: 40 | V196: =IF(MOD(A196,2)=0,0,S196) -> 36950 | Z196: 200 | AA196: =Z196*E196/D196/4 -> 0.1082543978 | AE196: =ROUND(AA196+AE194,0) -> 127
A197: 196 | B197: 40 | D197: 19029 | E197: 40 | K197: =K196*O196 -> 63.43 | M197: 4 | O197: 1.030006832 | P197: 0.3 | T197: 196 | U197: 0
A198: 197 | B198: 40 | D198: 19600 | E198: 40 | K198: 65.33333333 | M198: 4 | O198: 1.03 | P198: 0.3 | S198: =D198*2 -> 39200 | T198: 197 | U198: 40 | V198: =IF(MOD(A198,2)=0,0,S198) -> 39200 | Z198: 200 | AA198: =Z198*E198/D198/4 -> 0.1020408163 | AE198: =ROUND(AA198+AE196,0) -> 127
A199: 198 | B199: 40 | D199: 20188 | E199: 40 | K199: 67.29333333 | M199: 4 | O199: 1.030017832 | P199: 0.3 | T199: 198 | U199: 0
A200: 199 | B200: 40 | D200: 20794 | E200: 40 | K200: 69.31333333 | M200: 4 | O200: 1.030008656 | P200: 0.3 | S200: =D200*2 -> 41588 | T200: 199 | U200: 40 | V200: =IF(MOD(A200,2)=0,0,S200) -> 41588 | Z200: 200 | AA200: =Z200*E200/D200/4 -> 0.09618159084 | AE200: =ROUND(AA200+AE198,0) -> 127
... 104 more rows
